{"text_format":"3","workbook":"xlsx","n_sheets":3,"sheets":["Δεδομένα χάρτη","Ευέλικτος χάρτης","Πληροφορίες"],"not_rendered":{"defined_names":5},"read":"whole","date_system":"1900"}

{"sheet":"Δεδομένα χάρτη","index":0,"n_rows":13,"n_cols":7,"rows_kept":13,"merged":[[12,1,12,4]]}
["Δημιουργήστε έναν ευέλικτο χάρτη με την εισαγωγή σημαντικών οροσήμων ή δραστηριοτήτων στον πίνακα \"Δεδομένα χάρτη\" σε αυτό το φύλλο εργασίας.\nΟ τίτλος αυτού του φύλλου εργασίας είναι στο κελί B1. \nΠληροφορίες σχετικά με το πώς μπορείτε να χρησιμοποιήσετε αυτό το φύλλο εργασίας, συμπεριλαμβανομένων οδηγιών για προγράμματα ανάγνωσης οθόνης, υπάρχουν στο φύλλο εργασίας \"Πληροφορίες\".\nΣυνεχίστε την περιήγηση προς τα κάτω στη στήλη Α για περαιτέρω οδηγίες.","Δεδομένα ευέλικτης λωρίδας χρόνου"]
["Οι επικεφαλίδες του πίνακα είναι στα κελιά B2 έως E2. Χρησιμοποιήστε φίλτρα επικεφαλίδας για να ταξινομήσετε τον πίνακα και να βρείτε συγκεκριμένα στοιχεία\nΟ ευέλικτος χάρτης λειτουργεί καλύτερα όταν ο πίνακας είναι ταξινομημένος με αύξουσα σειρά κατά προτεραιότητα και, στη συνέχεια, κατά ορόσημο ή δραστηριότητα.\nΤα κελιά B3 έως E12 του πίνακα \"Δεδομένα χάρτη\" περιέχουν δείγματα δεδομένων. \nΜόλις ολοκληρωθεί ένα ορόσημο ή μια δραστηριότητα, ενημερώστε το αντίστοιχο πεδίο \"Αποτέλεσμα\" για να εμφανίσετε τα αποτελέσματα στο φύλλο εργασίας \"Ευέλικτος χάρτης\". Πληκτρολογήστε \"Καμία αλλαγή\" για να επισημάνετε τα ορόσημα που δεν επηρεάζονται.\nΣυνεχίστε στο κελί A13 για την επόμενη οδηγία.\n","Στόχος","Ορόσημο ή δραστηριότητα","Προτεραιότητα","Αποτέλεσμα",null,"<--ταξινομήστε κατά προτεραιότητα και ορόσημο ή δραστηριότητα, με αύξουσα σειρά"]
[null,"Τρέχων","Δραστηριότητα 1\nΔημιουργία πρωτοτύπου","1- Υψηλή",null,null,"<-- προσθέστε ένα αποτέλεσμα για κάθε ολοκληρωμένο ορόσημο. Πληκτρολογήστε \"Καμία αλλαγή\" για να επισημάνετε τα ορόσημα που δεν επηρεάζονται."]
[null,"Βραχυπρόθεσμος","Δραστηριότητα 2\nΕπίδειξη πρωτοτύπου","1- Υψηλή"]
[null,"Τρέχων","Δραστηριότητα 6","1- Υψηλή"]
[null,"Μελλοντικός","Δραστηριότητα 7\nΑνάθεση ανάπτυξης για την υλοποίηση πρώτου σταδίου","1- Υψηλή"]
[null,"Ολοκληρωμένος","Δραστηριότητα 9\nΈγκριση πρώτου σταδίου","1- Υψηλή","Μείωση κατά 10%"]
[null,"Μελλοντικός","Δραστηριότητα 10","2 - Μεσαία"]
[null,"Βραχυπρόθεσμος","Δραστηριότητα 8","2 - Μεσαία"]
[null,"Ολοκληρωμένος","Δραστηριότητα 3","3 - Χαμηλή","Καμία αλλαγή"]
[null,"Μελλοντικός","Δραστηριότητα 4","3 - Χαμηλή"]
[null,"Τρέχων","Δραστηριότητα 5","3 - Χαμηλή"]
["Προσθέστε νέα στοιχεία με την εισαγωγή νέων γραμμών στον πίνακα επάνω από αυτήν τη γραμμή.\nΑυτή είναι η τελευταία οδηγία σε αυτό το φύλλο εργασίας.","Προσθέστε νέα στοιχεία με την εισαγωγή νέων γραμμών επάνω από αυτήν τη γραμμή."]

{"sheet":"Ευέλικτος χάρτης","index":1,"n_rows":100,"n_cols":8,"rows_kept":100}
["Ένας ευέλικτος χάρτης που εμφανίζει τα ορόσημα και τις δραστηριότητες από το φύλλο εργασίας \"Δεδομένα χάρτη\" που βρίσκεται σε αυτό το φύλλο εργασίας. \nΟ τίτλος είναι στο κελί B1. \nΤα αποτελέσματα που περιέχουν τη φράση \"Καμία αλλαγή\" επισημαίνονται με ανοιχτό πορτοκαλί, RGB (255, 230, 210).\nΤα ορόσημα ή οι δραστηριότητες που έχουν ολοκληρωθεί επισημαίνονται με ανοιχτό πράσινο, RGB (237,251,219).","Ευέλικτος χάρτης"]
["Οι επικεφαλίδες του γραφήματος βρίσκονται στα κελιά B2, D2, F2 και H2. Αναγράφουν τα εξής: Ολοκληρωμένος, Τρέχων, Βραχυπρόθεσμος και Μελλοντικός. Τροποποιήστε αυτές τις επικεφαλίδες για να αλλάξετε τις τιμές επιλογής \"Στόχος\" στον πίνακα δεδομένων \"Δεδομένα χάρτη\" στο φύλλο εργασίας \"Δεδομένα χάρτη\".\nΤα κελιά B3 έως H20 περιέχουν τα ορόσημα και τις δραστηριότητες για τις επικεφαλίδες σε αυτήν τη γραμμή. \nΤα ορόσημα και οι δραστηριότητες δημιουργούνται στο φύλλο εργασίας \"Δεδομένα χάρτη\".\nΜΗΝ τροποποιήσετε ή διαγράψετε καταχωρήσεις σε αυτό το φύλλο εργασίας. Για να ενημερώσετε το περιεχόμενο σε αυτό το φύλλο εργασίας, ενημερώστε τον πίνακα \"Δεδομένα χάρτη\" στο φύλλο \"Δεδομένα χάρτη\".\nΑυτή είναι η τελευταία οδηγία σε αυτό το φύλλο εργασίας.","Ολοκληρωμένος",null,"Τρέχων",null,"Βραχυπρόθεσμος",null,"Μελλοντικός"]
[null,{"$f":"IFERROR(INDEX(Δραστηριότητα,SMALL(IF(Στόχος=$B$2,ROW(Δραστηριότητα)-MIN(ROW(Δραστηριότητα))+1),ROWS($B$3:B3)))&\" \"&CHAR(10)&(INDEX(Αποτέλεσμα,SMALL(IF(Στόχος=$B$2,ROW(Αποτέλεσμα)-MIN(ROW(Αποτέλεσμα))+1),ROWS($B$3:B3))))&CHAR(10),\"\")","v":"Δραστηριότητα 9\nΈγκριση πρώτου σταδίου \nΜείωση κατά 10%\n"},null,{"$f":"IFERROR(INDEX(Δραστηριότητα,SMALL(IF(Στόχος=$D$2,ROW(Δραστηριότητα)-MIN(ROW(Δραστηριότητα))+1),ROWS($B$3:B3)))&CHAR(10),\"\")","v":"Δραστηριότητα 1\nΔημιουργία πρωτοτύπου\n"},null,{"$f":"IFERROR(INDEX(Δραστηριότητα,SMALL(IF(Στόχος=$F$2,ROW(Δραστηριότητα)-MIN(ROW(Δραστηριότητα))+1),ROWS($B$3:B3)))&CHAR(10),\"\")","v":"Δραστηριότητα 2\nΕπίδειξη πρωτοτύπου\n"},null,{"$f":"IFERROR(INDEX(Δραστηριότητα,SMALL(IF(Στόχος=$H$2,ROW(Δραστηριότητα)-MIN(ROW(Δραστηριότητα))+1),ROWS($B$3:B3)))&CHAR(10),\"\")","v":"Δραστηριότητα 7\nΑνάθεση ανάπτυξης για την υλοποίηση πρώτου σταδίου\n"}]
[null,{"$f":"IFERROR(INDEX(Δραστηριότητα,SMALL(IF(Στόχος=$B$2,ROW(Δραστηριότητα)-MIN(ROW(Δραστηριότητα))+1),ROWS($B$3:B4)))&\" \"&CHAR(10)&(INDEX(Αποτέλεσμα,SMALL(IF(Στόχος=$B$2,ROW(Αποτέλεσμα)-MIN(ROW(Αποτέλεσμα))+1),ROWS($B$3:B4))))&CHAR(10),\"\")","v":"Δραστηριότητα 3 \nΚαμία αλλαγή\n"},null,{"$f":"IFERROR(INDEX(Δραστηριότητα,SMALL(IF(Στόχος=$D$2,ROW(Δραστηριότητα)-MIN(ROW(Δραστηριότητα))+1),ROWS($B$3:B4)))&CHAR(10),\"\")","v":"Δραστηριότητα 6\n"},null,{"$f":"IFERROR(INDEX(Δραστηριότητα,SMALL(IF(Στόχος=$F$2,ROW(Δραστηριότητα)-MIN(ROW(Δραστηριότητα))+1),ROWS($B$3:B4)))&CHAR(10),\"\")","v":"Δραστηριότητα 8\n"},null,{"$f":"IFERROR(INDEX(Δραστηριότητα,SMALL(IF(Στόχος=$H$2,ROW(Δραστηριότητα)-MIN(ROW(Δραστηριότητα))+1),ROWS($B$3:B4)))&CHAR(10),\"\")","v":"Δραστηριότητα 10\n"}]
[null,{"$f":"IFERROR(INDEX(Δραστηριότητα,SMALL(IF(Στόχος=$B$2,ROW(Δραστηριότητα)-MIN(ROW(Δραστηριότητα))+1),ROWS($B$3:B5)))&\" \"&CHAR(10)&(INDEX(Αποτέλεσμα,SMALL(IF(Στόχος=$B$2,ROW(Αποτέλεσμα)-MIN(ROW(Αποτέλεσμα))+1),ROWS($B$3:B5))))&CHAR(10),\"\")","v":""},null,{"$f":"IFERROR(INDEX(Δραστηριότητα,SMALL(IF(Στόχος=$D$2,ROW(Δραστηριότητα)-MIN(ROW(Δραστηριότητα))+1),ROWS($B$3:B5)))&CHAR(10),\"\")","v":"Δραστηριότητα 5\n"},null,{"$f":"IFERROR(INDEX(Δραστηριότητα,SMALL(IF(Στόχος=$F$2,ROW(Δραστηριότητα)-MIN(ROW(Δραστηριότητα))+1),ROWS($B$3:B5)))&CHAR(10),\"\")","v":""},null,{"$f":"IFERROR(INDEX(Δραστηριότητα,SMALL(IF(Στόχος=$H$2,ROW(Δραστηριότητα)-MIN(ROW(Δραστηριότητα))+1),ROWS($B$3:B5)))&CHAR(10),\"\")","v":"Δραστηριότητα 4\n"}]
[null,{"$f":"IFERROR(INDEX(Δραστηριότητα,SMALL(IF(Στόχος=$B$2,ROW(Δραστηριότητα)-MIN(ROW(Δραστηριότητα))+1),ROWS($B$3:B6)))&\" \"&CHAR(10)&(INDEX(Αποτέλεσμα,SMALL(IF(Στόχος=$B$2,ROW(Αποτέλεσμα)-MIN(ROW(Αποτέλεσμα))+1),ROWS($B$3:B6))))&CHAR(10),\"\")","v":""},null,{"$f":"IFERROR(INDEX(Δραστηριότητα,SMALL(IF(Στόχος=$D$2,ROW(Δραστηριότητα)-MIN(ROW(Δραστηριότητα))+1),ROWS($B$3:B6)))&CHAR(10),\"\")","v":""},null,{"$f":"IFERROR(INDEX(Δραστηριότητα,SMALL(IF(Στόχος=$F$2,ROW(Δραστηριότητα)-MIN(ROW(Δραστηριότητα))+1),ROWS($B$3:B6)))&CHAR(10),\"\")","v":""},null,{"$f":"IFERROR(INDEX(Δραστηριότητα,SMALL(IF(Στόχος=$H$2,ROW(Δραστηριότητα)-MIN(ROW(Δραστηριότητα))+1),ROWS($B$3:B6)))&CHAR(10),\"\")","v":""}]
[null,{"$f":"IFERROR(INDEX(Δραστηριότητα,SMALL(IF(Στόχος=$B$2,ROW(Δραστηριότητα)-MIN(ROW(Δραστηριότητα))+1),ROWS($B$3:B7)))&\" \"&CHAR(10)&(INDEX(Αποτέλεσμα,SMALL(IF(Στόχος=$B$2,ROW(Αποτέλεσμα)-MIN(ROW(Αποτέλεσμα))+1),ROWS($B$3:B7))))&CHAR(10),\"\")","v":""},null,{"$f":"IFERROR(INDEX(Δραστηριότητα,SMALL(IF(Στόχος=$D$2,ROW(Δραστηριότητα)-MIN(ROW(Δραστηριότητα))+1),ROWS($B$3:B7)))&CHAR(10),\"\")","v":""},null,{"$f":"IFERROR(INDEX(Δραστηριότητα,SMALL(IF(Στόχος=$F$2,ROW(Δραστηριότητα)-MIN(ROW(Δραστηριότητα))+1),ROWS($B$3:B7)))&CHAR(10),\"\")","v":""},null,{"$f":"IFERROR(INDEX(Δραστηριότητα,SMALL(IF(Στόχος=$H$2,ROW(Δραστηριότητα)-MIN(ROW(Δραστηριότητα))+1),ROWS($B$3:B7)))&CHAR(10),\"\")","v":""}]
[null,{"$f":"IFERROR(INDEX(Δραστηριότητα,SMALL(IF(Στόχος=$B$2,ROW(Δραστηριότητα)-MIN(ROW(Δραστηριότητα))+1),ROWS($B$3:B8)))&\" \"&CHAR(10)&(INDEX(Αποτέλεσμα,SMALL(IF(Στόχος=$B$2,ROW(Αποτέλεσμα)-MIN(ROW(Αποτέλεσμα))+1),ROWS($B$3:B8))))&CHAR(10),\"\")","v":""},null,{"$f":"IFERROR(INDEX(Δραστηριότητα,SMALL(IF(Στόχος=$D$2,ROW(Δραστηριότητα)-MIN(ROW(Δραστηριότητα))+1),ROWS($B$3:B8)))&CHAR(10),\"\")","v":""},null,{"$f":"IFERROR(INDEX(Δραστηριότητα,SMALL(IF(Στόχος=$F$2,ROW(Δραστηριότητα)-MIN(ROW(Δραστηριότητα))+1),ROWS($B$3:B8)))&CHAR(10),\"\")","v":""},null,{"$f":"IFERROR(INDEX(Δραστηριότητα,SMALL(IF(Στόχος=$H$2,ROW(Δραστηριότητα)-MIN(ROW(Δραστηριότητα))+1),ROWS($B$3:B8)))&CHAR(10),\"\")","v":""}]
[null,{"$f":"IFERROR(INDEX(Δραστηριότητα,SMALL(IF(Στόχος=$B$2,ROW(Δραστηριότητα)-MIN(ROW(Δραστηριότητα))+1),ROWS($B$3:B9)))&\" \"&CHAR(10)&(INDEX(Αποτέλεσμα,SMALL(IF(Στόχος=$B$2,ROW(Αποτέλεσμα)-MIN(ROW(Αποτέλεσμα))+1),ROWS($B$3:B9))))&CHAR(10),\"\")","v":""},null,{"$f":"IFERROR(INDEX(Δραστηριότητα,SMALL(IF(Στόχος=$D$2,ROW(Δραστηριότητα)-MIN(ROW(Δραστηριότητα))+1),ROWS($B$3:B9)))&CHAR(10),\"\")","v":""},null,{"$f":"IFERROR(INDEX(Δραστηριότητα,SMALL(IF(Στόχος=$F$2,ROW(Δραστηριότητα)-MIN(ROW(Δραστηριότητα))+1),ROWS($B$3:B9)))&CHAR(10),\"\")","v":""},null,{"$f":"IFERROR(INDEX(Δραστηριότητα,SMALL(IF(Στόχος=$H$2,ROW(Δραστηριότητα)-MIN(ROW(Δραστηριότητα))+1),ROWS($B$3:B9)))&CHAR(10),\"\")","v":""}]
[null,{"$f":"IFERROR(INDEX(Δραστηριότητα,SMALL(IF(Στόχος=$B$2,ROW(Δραστηριότητα)-MIN(ROW(Δραστηριότητα))+1),ROWS($B$3:B10)))&\" \"&CHAR(10)&(INDEX(Αποτέλεσμα,SMALL(IF(Στόχος=$B$2,ROW(Αποτέλεσμα)-MIN(ROW(Αποτέλεσμα))+1),ROWS($B$3:B10))))&CHAR(10),\"\")","v":""},null,{"$f":"IFERROR(INDEX(Δραστηριότητα,SMALL(IF(Στόχος=$D$2,ROW(Δραστηριότητα)-MIN(ROW(Δραστηριότητα))+1),ROWS($B$3:B10)))&CHAR(10),\"\")","v":""},null,{"$f":"IFERROR(INDEX(Δραστηριότητα,SMALL(IF(Στόχος=$F$2,ROW(Δραστηριότητα)-MIN(ROW(Δραστηριότητα))+1),ROWS($B$3:B10)))&CHAR(10),\"\")","v":""},null,{"$f":"IFERROR(INDEX(Δραστηριότητα,SMALL(IF(Στόχος=$H$2,ROW(Δραστηριότητα)-MIN(ROW(Δραστηριότητα))+1),ROWS($B$3:B10)))&CHAR(10),\"\")","v":""}]
[null,{"$f":"IFERROR(INDEX(Δραστηριότητα,SMALL(IF(Στόχος=$B$2,ROW(Δραστηριότητα)-MIN(ROW(Δραστηριότητα))+1),ROWS($B$3:B11)))&\" \"&CHAR(10)&(INDEX(Αποτέλεσμα,SMALL(IF(Στόχος=$B$2,ROW(Αποτέλεσμα)-MIN(ROW(Αποτέλεσμα))+1),ROWS($B$3:B11))))&CHAR(10),\"\")","v":""},null,{"$f":"IFERROR(INDEX(Δραστηριότητα,SMALL(IF(Στόχος=$D$2,ROW(Δραστηριότητα)-MIN(ROW(Δραστηριότητα))+1),ROWS($B$3:B11)))&CHAR(10),\"\")","v":""},null,{"$f":"IFERROR(INDEX(Δραστηριότητα,SMALL(IF(Στόχος=$F$2,ROW(Δραστηριότητα)-MIN(ROW(Δραστηριότητα))+1),ROWS($B$3:B11)))&CHAR(10),\"\")","v":""},null,{"$f":"IFERROR(INDEX(Δραστηριότητα,SMALL(IF(Στόχος=$H$2,ROW(Δραστηριότητα)-MIN(ROW(Δραστηριότητα))+1),ROWS($B$3:B11)))&CHAR(10),\"\")","v":""}]
[null,{"$f":"IFERROR(INDEX(Δραστηριότητα,SMALL(IF(Στόχος=$B$2,ROW(Δραστηριότητα)-MIN(ROW(Δραστηριότητα))+1),ROWS($B$3:B12)))&\" \"&CHAR(10)&(INDEX(Αποτέλεσμα,SMALL(IF(Στόχος=$B$2,ROW(Αποτέλεσμα)-MIN(ROW(Αποτέλεσμα))+1),ROWS($B$3:B12))))&CHAR(10),\"\")","v":""},null,{"$f":"IFERROR(INDEX(Δραστηριότητα,SMALL(IF(Στόχος=$D$2,ROW(Δραστηριότητα)-MIN(ROW(Δραστηριότητα))+1),ROWS($B$3:B12)))&CHAR(10),\"\")","v":""},null,{"$f":"IFERROR(INDEX(Δραστηριότητα,SMALL(IF(Στόχος=$F$2,ROW(Δραστηριότητα)-MIN(ROW(Δραστηριότητα))+1),ROWS($B$3:B12)))&CHAR(10),\"\")","v":""},null,{"$f":"IFERROR(INDEX(Δραστηριότητα,SMALL(IF(Στόχος=$H$2,ROW(Δραστηριότητα)-MIN(ROW(Δραστηριότητα))+1),ROWS($B$3:B12)))&CHAR(10),\"\")","v":""}]
[null,{"$f":"IFERROR(INDEX(Δραστηριότητα,SMALL(IF(Στόχος=$B$2,ROW(Δραστηριότητα)-MIN(ROW(Δραστηριότητα))+1),ROWS($B$3:B13)))&\" \"&CHAR(10)&(INDEX(Αποτέλεσμα,SMALL(IF(Στόχος=$B$2,ROW(Αποτέλεσμα)-MIN(ROW(Αποτέλεσμα))+1),ROWS($B$3:B13))))&CHAR(10),\"\")","v":""},null,{"$f":"IFERROR(INDEX(Δραστηριότητα,SMALL(IF(Στόχος=$D$2,ROW(Δραστηριότητα)-MIN(ROW(Δραστηριότητα))+1),ROWS($B$3:B13)))&CHAR(10),\"\")","v":""},null,{"$f":"IFERROR(INDEX(Δραστηριότητα,SMALL(IF(Στόχος=$F$2,ROW(Δραστηριότητα)-MIN(ROW(Δραστηριότητα))+1),ROWS($B$3:B13)))&CHAR(10),\"\")","v":""},null,{"$f":"IFERROR(INDEX(Δραστηριότητα,SMALL(IF(Στόχος=$H$2,ROW(Δραστηριότητα)-MIN(ROW(Δραστηριότητα))+1),ROWS($B$3:B13)))&CHAR(10),\"\")","v":""}]
[null,{"$f":"IFERROR(INDEX(Δραστηριότητα,SMALL(IF(Στόχος=$B$2,ROW(Δραστηριότητα)-MIN(ROW(Δραστηριότητα))+1),ROWS($B$3:B14)))&\" \"&CHAR(10)&(INDEX(Αποτέλεσμα,SMALL(IF(Στόχος=$B$2,ROW(Αποτέλεσμα)-MIN(ROW(Αποτέλεσμα))+1),ROWS($B$3:B14))))&CHAR(10),\"\")","v":""},null,{"$f":"IFERROR(INDEX(Δραστηριότητα,SMALL(IF(Στόχος=$D$2,ROW(Δραστηριότητα)-MIN(ROW(Δραστηριότητα))+1),ROWS($B$3:B14)))&CHAR(10),\"\")","v":""},null,{"$f":"IFERROR(INDEX(Δραστηριότητα,SMALL(IF(Στόχος=$F$2,ROW(Δραστηριότητα)-MIN(ROW(Δραστηριότητα))+1),ROWS($B$3:B14)))&CHAR(10),\"\")","v":""},null,{"$f":"IFERROR(INDEX(Δραστηριότητα,SMALL(IF(Στόχος=$H$2,ROW(Δραστηριότητα)-MIN(ROW(Δραστηριότητα))+1),ROWS($B$3:B14)))&CHAR(10),\"\")","v":""}]
[null,{"$f":"IFERROR(INDEX(Δραστηριότητα,SMALL(IF(Στόχος=$B$2,ROW(Δραστηριότητα)-MIN(ROW(Δραστηριότητα))+1),ROWS($B$3:B15)))&\" \"&CHAR(10)&(INDEX(Αποτέλεσμα,SMALL(IF(Στόχος=$B$2,ROW(Αποτέλεσμα)-MIN(ROW(Αποτέλεσμα))+1),ROWS($B$3:B15))))&CHAR(10),\"\")","v":""},null,{"$f":"IFERROR(INDEX(Δραστηριότητα,SMALL(IF(Στόχος=$D$2,ROW(Δραστηριότητα)-MIN(ROW(Δραστηριότητα))+1),ROWS($B$3:B15)))&CHAR(10),\"\")","v":""},null,{"$f":"IFERROR(INDEX(Δραστηριότητα,SMALL(IF(Στόχος=$F$2,ROW(Δραστηριότητα)-MIN(ROW(Δραστηριότητα))+1),ROWS($B$3:B15)))&CHAR(10),\"\")","v":""},null,{"$f":"IFERROR(INDEX(Δραστηριότητα,SMALL(IF(Στόχος=$H$2,ROW(Δραστηριότητα)-MIN(ROW(Δραστηριότητα))+1),ROWS($B$3:B15)))&CHAR(10),\"\")","v":""}]
[null,{"$f":"IFERROR(INDEX(Δραστηριότητα,SMALL(IF(Στόχος=$B$2,ROW(Δραστηριότητα)-MIN(ROW(Δραστηριότητα))+1),ROWS($B$3:B16)))&\" \"&CHAR(10)&(INDEX(Αποτέλεσμα,SMALL(IF(Στόχος=$B$2,ROW(Αποτέλεσμα)-MIN(ROW(Αποτέλεσμα))+1),ROWS($B$3:B16))))&CHAR(10),\"\")","v":""},null,{"$f":"IFERROR(INDEX(Δραστηριότητα,SMALL(IF(Στόχος=$D$2,ROW(Δραστηριότητα)-MIN(ROW(Δραστηριότητα))+1),ROWS($B$3:B16)))&CHAR(10),\"\")","v":""},null,{"$f":"IFERROR(INDEX(Δραστηριότητα,SMALL(IF(Στόχος=$F$2,ROW(Δραστηριότητα)-MIN(ROW(Δραστηριότητα))+1),ROWS($B$3:B16)))&CHAR(10),\"\")","v":""},null,{"$f":"IFERROR(INDEX(Δραστηριότητα,SMALL(IF(Στόχος=$H$2,ROW(Δραστηριότητα)-MIN(ROW(Δραστηριότητα))+1),ROWS($B$3:B16)))&CHAR(10),\"\")","v":""}]
[null,{"$f":"IFERROR(INDEX(Δραστηριότητα,SMALL(IF(Στόχος=$B$2,ROW(Δραστηριότητα)-MIN(ROW(Δραστηριότητα))+1),ROWS($B$3:B17)))&\" \"&CHAR(10)&(INDEX(Αποτέλεσμα,SMALL(IF(Στόχος=$B$2,ROW(Αποτέλεσμα)-MIN(ROW(Αποτέλεσμα))+1),ROWS($B$3:B17))))&CHAR(10),\"\")","v":""},null,{"$f":"IFERROR(INDEX(Δραστηριότητα,SMALL(IF(Στόχος=$D$2,ROW(Δραστηριότητα)-MIN(ROW(Δραστηριότητα))+1),ROWS($B$3:B17)))&CHAR(10),\"\")","v":""},null,{"$f":"IFERROR(INDEX(Δραστηριότητα,SMALL(IF(Στόχος=$F$2,ROW(Δραστηριότητα)-MIN(ROW(Δραστηριότητα))+1),ROWS($B$3:B17)))&CHAR(10),\"\")","v":""},null,{"$f":"IFERROR(INDEX(Δραστηριότητα,SMALL(IF(Στόχος=$H$2,ROW(Δραστηριότητα)-MIN(ROW(Δραστηριότητα))+1),ROWS($B$3:B17)))&CHAR(10),\"\")","v":""}]
[null,{"$f":"IFERROR(INDEX(Δραστηριότητα,SMALL(IF(Στόχος=$B$2,ROW(Δραστηριότητα)-MIN(ROW(Δραστηριότητα))+1),ROWS($B$3:B18)))&\" \"&CHAR(10)&(INDEX(Αποτέλεσμα,SMALL(IF(Στόχος=$B$2,ROW(Αποτέλεσμα)-MIN(ROW(Αποτέλεσμα))+1),ROWS($B$3:B18))))&CHAR(10),\"\")","v":""},null,{"$f":"IFERROR(INDEX(Δραστηριότητα,SMALL(IF(Στόχος=$D$2,ROW(Δραστηριότητα)-MIN(ROW(Δραστηριότητα))+1),ROWS($B$3:B18)))&CHAR(10),\"\")","v":""},null,{"$f":"IFERROR(INDEX(Δραστηριότητα,SMALL(IF(Στόχος=$F$2,ROW(Δραστηριότητα)-MIN(ROW(Δραστηριότητα))+1),ROWS($B$3:B18)))&CHAR(10),\"\")","v":""},null,{"$f":"IFERROR(INDEX(Δραστηριότητα,SMALL(IF(Στόχος=$H$2,ROW(Δραστηριότητα)-MIN(ROW(Δραστηριότητα))+1),ROWS($B$3:B18)))&CHAR(10),\"\")","v":""}]
[null,{"$f":"IFERROR(INDEX(Δραστηριότητα,SMALL(IF(Στόχος=$B$2,ROW(Δραστηριότητα)-MIN(ROW(Δραστηριότητα))+1),ROWS($B$3:B19)))&\" \"&CHAR(10)&(INDEX(Αποτέλεσμα,SMALL(IF(Στόχος=$B$2,ROW(Αποτέλεσμα)-MIN(ROW(Αποτέλεσμα))+1),ROWS($B$3:B19))))&CHAR(10),\"\")","v":""},null,{"$f":"IFERROR(INDEX(Δραστηριότητα,SMALL(IF(Στόχος=$D$2,ROW(Δραστηριότητα)-MIN(ROW(Δραστηριότητα))+1),ROWS($B$3:B19)))&CHAR(10),\"\")","v":""},null,{"$f":"IFERROR(INDEX(Δραστηριότητα,SMALL(IF(Στόχος=$F$2,ROW(Δραστηριότητα)-MIN(ROW(Δραστηριότητα))+1),ROWS($B$3:B19)))&CHAR(10),\"\")","v":""},null,{"$f":"IFERROR(INDEX(Δραστηριότητα,SMALL(IF(Στόχος=$H$2,ROW(Δραστηριότητα)-MIN(ROW(Δραστηριότητα))+1),ROWS($B$3:B19)))&CHAR(10),\"\")","v":""}]
[null,{"$f":"IFERROR(INDEX(Δραστηριότητα,SMALL(IF(Στόχος=$B$2,ROW(Δραστηριότητα)-MIN(ROW(Δραστηριότητα))+1),ROWS($B$3:B20)))&\" \"&CHAR(10)&(INDEX(Αποτέλεσμα,SMALL(IF(Στόχος=$B$2,ROW(Αποτέλεσμα)-MIN(ROW(Αποτέλεσμα))+1),ROWS($B$3:B20))))&CHAR(10),\"\")","v":""},null,{"$f":"IFERROR(INDEX(Δραστηριότητα,SMALL(IF(Στόχος=$D$2,ROW(Δραστηριότητα)-MIN(ROW(Δραστηριότητα))+1),ROWS($B$3:B20)))&CHAR(10),\"\")","v":""},null,{"$f":"IFERROR(INDEX(Δραστηριότητα,SMALL(IF(Στόχος=$F$2,ROW(Δραστηριότητα)-MIN(ROW(Δραστηριότητα))+1),ROWS($B$3:B20)))&CHAR(10),\"\")","v":""},null,{"$f":"IFERROR(INDEX(Δραστηριότητα,SMALL(IF(Στόχος=$H$2,ROW(Δραστηριότητα)-MIN(ROW(Δραστηριότητα))+1),ROWS($B$3:B20)))&CHAR(10),\"\")","v":""}]
[null,{"$f":"IFERROR(INDEX(Δραστηριότητα,SMALL(IF(Στόχος=$B$2,ROW(Δραστηριότητα)-MIN(ROW(Δραστηριότητα))+1),ROWS($B$3:B21)))&\" \"&CHAR(10)&(INDEX(Αποτέλεσμα,SMALL(IF(Στόχος=$B$2,ROW(Αποτέλεσμα)-MIN(ROW(Αποτέλεσμα))+1),ROWS($B$3:B21))))&CHAR(10),\"\")","v":""},null,{"$f":"IFERROR(INDEX(Δραστηριότητα,SMALL(IF(Στόχος=$D$2,ROW(Δραστηριότητα)-MIN(ROW(Δραστηριότητα))+1),ROWS($B$3:B21)))&CHAR(10),\"\")","v":""},null,{"$f":"IFERROR(INDEX(Δραστηριότητα,SMALL(IF(Στόχος=$F$2,ROW(Δραστηριότητα)-MIN(ROW(Δραστηριότητα))+1),ROWS($B$3:B21)))&CHAR(10),\"\")","v":""},null,{"$f":"IFERROR(INDEX(Δραστηριότητα,SMALL(IF(Στόχος=$H$2,ROW(Δραστηριότητα)-MIN(ROW(Δραστηριότητα))+1),ROWS($B$3:B21)))&CHAR(10),\"\")","v":""}]
[null,{"$f":"IFERROR(INDEX(Δραστηριότητα,SMALL(IF(Στόχος=$B$2,ROW(Δραστηριότητα)-MIN(ROW(Δραστηριότητα))+1),ROWS($B$3:B22)))&\" \"&CHAR(10)&(INDEX(Αποτέλεσμα,SMALL(IF(Στόχος=$B$2,ROW(Αποτέλεσμα)-MIN(ROW(Αποτέλεσμα))+1),ROWS($B$3:B22))))&CHAR(10),\"\")","v":""},null,{"$f":"IFERROR(INDEX(Δραστηριότητα,SMALL(IF(Στόχος=$D$2,ROW(Δραστηριότητα)-MIN(ROW(Δραστηριότητα))+1),ROWS($B$3:B22)))&CHAR(10),\"\")","v":""},null,{"$f":"IFERROR(INDEX(Δραστηριότητα,SMALL(IF(Στόχος=$F$2,ROW(Δραστηριότητα)-MIN(ROW(Δραστηριότητα))+1),ROWS($B$3:B22)))&CHAR(10),\"\")","v":""},null,{"$f":"IFERROR(INDEX(Δραστηριότητα,SMALL(IF(Στόχος=$H$2,ROW(Δραστηριότητα)-MIN(ROW(Δραστηριότητα))+1),ROWS($B$3:B22)))&CHAR(10),\"\")","v":""}]
[null,{"$f":"IFERROR(INDEX(Δραστηριότητα,SMALL(IF(Στόχος=$B$2,ROW(Δραστηριότητα)-MIN(ROW(Δραστηριότητα))+1),ROWS($B$3:B23)))&\" \"&CHAR(10)&(INDEX(Αποτέλεσμα,SMALL(IF(Στόχος=$B$2,ROW(Αποτέλεσμα)-MIN(ROW(Αποτέλεσμα))+1),ROWS($B$3:B23))))&CHAR(10),\"\")","v":""},null,{"$f":"IFERROR(INDEX(Δραστηριότητα,SMALL(IF(Στόχος=$D$2,ROW(Δραστηριότητα)-MIN(ROW(Δραστηριότητα))+1),ROWS($B$3:B23)))&CHAR(10),\"\")","v":""},null,{"$f":"IFERROR(INDEX(Δραστηριότητα,SMALL(IF(Στόχος=$F$2,ROW(Δραστηριότητα)-MIN(ROW(Δραστηριότητα))+1),ROWS($B$3:B23)))&CHAR(10),\"\")","v":""},null,{"$f":"IFERROR(INDEX(Δραστηριότητα,SMALL(IF(Στόχος=$H$2,ROW(Δραστηριότητα)-MIN(ROW(Δραστηριότητα))+1),ROWS($B$3:B23)))&CHAR(10),\"\")","v":""}]
[null,{"$f":"IFERROR(INDEX(Δραστηριότητα,SMALL(IF(Στόχος=$B$2,ROW(Δραστηριότητα)-MIN(ROW(Δραστηριότητα))+1),ROWS($B$3:B24)))&\" \"&CHAR(10)&(INDEX(Αποτέλεσμα,SMALL(IF(Στόχος=$B$2,ROW(Αποτέλεσμα)-MIN(ROW(Αποτέλεσμα))+1),ROWS($B$3:B24))))&CHAR(10),\"\")","v":""},null,{"$f":"IFERROR(INDEX(Δραστηριότητα,SMALL(IF(Στόχος=$D$2,ROW(Δραστηριότητα)-MIN(ROW(Δραστηριότητα))+1),ROWS($B$3:B24)))&CHAR(10),\"\")","v":""},null,{"$f":"IFERROR(INDEX(Δραστηριότητα,SMALL(IF(Στόχος=$F$2,ROW(Δραστηριότητα)-MIN(ROW(Δραστηριότητα))+1),ROWS($B$3:B24)))&CHAR(10),\"\")","v":""},null,{"$f":"IFERROR(INDEX(Δραστηριότητα,SMALL(IF(Στόχος=$H$2,ROW(Δραστηριότητα)-MIN(ROW(Δραστηριότητα))+1),ROWS($B$3:B24)))&CHAR(10),\"\")","v":""}]
[null,{"$f":"IFERROR(INDEX(Δραστηριότητα,SMALL(IF(Στόχος=$B$2,ROW(Δραστηριότητα)-MIN(ROW(Δραστηριότητα))+1),ROWS($B$3:B25)))&\" \"&CHAR(10)&(INDEX(Αποτέλεσμα,SMALL(IF(Στόχος=$B$2,ROW(Αποτέλεσμα)-MIN(ROW(Αποτέλεσμα))+1),ROWS($B$3:B25))))&CHAR(10),\"\")","v":""},null,{"$f":"IFERROR(INDEX(Δραστηριότητα,SMALL(IF(Στόχος=$D$2,ROW(Δραστηριότητα)-MIN(ROW(Δραστηριότητα))+1),ROWS($B$3:B25)))&CHAR(10),\"\")","v":""},null,{"$f":"IFERROR(INDEX(Δραστηριότητα,SMALL(IF(Στόχος=$F$2,ROW(Δραστηριότητα)-MIN(ROW(Δραστηριότητα))+1),ROWS($B$3:B25)))&CHAR(10),\"\")","v":""},null,{"$f":"IFERROR(INDEX(Δραστηριότητα,SMALL(IF(Στόχος=$H$2,ROW(Δραστηριότητα)-MIN(ROW(Δραστηριότητα))+1),ROWS($B$3:B25)))&CHAR(10),\"\")","v":""}]
[null,{"$f":"IFERROR(INDEX(Δραστηριότητα,SMALL(IF(Στόχος=$B$2,ROW(Δραστηριότητα)-MIN(ROW(Δραστηριότητα))+1),ROWS($B$3:B26)))&\" \"&CHAR(10)&(INDEX(Αποτέλεσμα,SMALL(IF(Στόχος=$B$2,ROW(Αποτέλεσμα)-MIN(ROW(Αποτέλεσμα))+1),ROWS($B$3:B26))))&CHAR(10),\"\")","v":""},null,{"$f":"IFERROR(INDEX(Δραστηριότητα,SMALL(IF(Στόχος=$D$2,ROW(Δραστηριότητα)-MIN(ROW(Δραστηριότητα))+1),ROWS($B$3:B26)))&CHAR(10),\"\")","v":""},null,{"$f":"IFERROR(INDEX(Δραστηριότητα,SMALL(IF(Στόχος=$F$2,ROW(Δραστηριότητα)-MIN(ROW(Δραστηριότητα))+1),ROWS($B$3:B26)))&CHAR(10),\"\")","v":""},null,{"$f":"IFERROR(INDEX(Δραστηριότητα,SMALL(IF(Στόχος=$H$2,ROW(Δραστηριότητα)-MIN(ROW(Δραστηριότητα))+1),ROWS($B$3:B26)))&CHAR(10),\"\")","v":""}]
[null,{"$f":"IFERROR(INDEX(Δραστηριότητα,SMALL(IF(Στόχος=$B$2,ROW(Δραστηριότητα)-MIN(ROW(Δραστηριότητα))+1),ROWS($B$3:B27)))&\" \"&CHAR(10)&(INDEX(Αποτέλεσμα,SMALL(IF(Στόχος=$B$2,ROW(Αποτέλεσμα)-MIN(ROW(Αποτέλεσμα))+1),ROWS($B$3:B27))))&CHAR(10),\"\")","v":""},null,{"$f":"IFERROR(INDEX(Δραστηριότητα,SMALL(IF(Στόχος=$D$2,ROW(Δραστηριότητα)-MIN(ROW(Δραστηριότητα))+1),ROWS($B$3:B27)))&CHAR(10),\"\")","v":""},null,{"$f":"IFERROR(INDEX(Δραστηριότητα,SMALL(IF(Στόχος=$F$2,ROW(Δραστηριότητα)-MIN(ROW(Δραστηριότητα))+1),ROWS($B$3:B27)))&CHAR(10),\"\")","v":""},null,{"$f":"IFERROR(INDEX(Δραστηριότητα,SMALL(IF(Στόχος=$H$2,ROW(Δραστηριότητα)-MIN(ROW(Δραστηριότητα))+1),ROWS($B$3:B27)))&CHAR(10),\"\")","v":""}]
[null,{"$f":"IFERROR(INDEX(Δραστηριότητα,SMALL(IF(Στόχος=$B$2,ROW(Δραστηριότητα)-MIN(ROW(Δραστηριότητα))+1),ROWS($B$3:B28)))&\" \"&CHAR(10)&(INDEX(Αποτέλεσμα,SMALL(IF(Στόχος=$B$2,ROW(Αποτέλεσμα)-MIN(ROW(Αποτέλεσμα))+1),ROWS($B$3:B28))))&CHAR(10),\"\")","v":""},null,{"$f":"IFERROR(INDEX(Δραστηριότητα,SMALL(IF(Στόχος=$D$2,ROW(Δραστηριότητα)-MIN(ROW(Δραστηριότητα))+1),ROWS($B$3:B28)))&CHAR(10),\"\")","v":""},null,{"$f":"IFERROR(INDEX(Δραστηριότητα,SMALL(IF(Στόχος=$F$2,ROW(Δραστηριότητα)-MIN(ROW(Δραστηριότητα))+1),ROWS($B$3:B28)))&CHAR(10),\"\")","v":""},null,{"$f":"IFERROR(INDEX(Δραστηριότητα,SMALL(IF(Στόχος=$H$2,ROW(Δραστηριότητα)-MIN(ROW(Δραστηριότητα))+1),ROWS($B$3:B28)))&CHAR(10),\"\")","v":""}]
[null,{"$f":"IFERROR(INDEX(Δραστηριότητα,SMALL(IF(Στόχος=$B$2,ROW(Δραστηριότητα)-MIN(ROW(Δραστηριότητα))+1),ROWS($B$3:B29)))&\" \"&CHAR(10)&(INDEX(Αποτέλεσμα,SMALL(IF(Στόχος=$B$2,ROW(Αποτέλεσμα)-MIN(ROW(Αποτέλεσμα))+1),ROWS($B$3:B29))))&CHAR(10),\"\")","v":""},null,{"$f":"IFERROR(INDEX(Δραστηριότητα,SMALL(IF(Στόχος=$D$2,ROW(Δραστηριότητα)-MIN(ROW(Δραστηριότητα))+1),ROWS($B$3:B29)))&CHAR(10),\"\")","v":""},null,{"$f":"IFERROR(INDEX(Δραστηριότητα,SMALL(IF(Στόχος=$F$2,ROW(Δραστηριότητα)-MIN(ROW(Δραστηριότητα))+1),ROWS($B$3:B29)))&CHAR(10),\"\")","v":""},null,{"$f":"IFERROR(INDEX(Δραστηριότητα,SMALL(IF(Στόχος=$H$2,ROW(Δραστηριότητα)-MIN(ROW(Δραστηριότητα))+1),ROWS($B$3:B29)))&CHAR(10),\"\")","v":""}]
[null,{"$f":"IFERROR(INDEX(Δραστηριότητα,SMALL(IF(Στόχος=$B$2,ROW(Δραστηριότητα)-MIN(ROW(Δραστηριότητα))+1),ROWS($B$3:B30)))&\" \"&CHAR(10)&(INDEX(Αποτέλεσμα,SMALL(IF(Στόχος=$B$2,ROW(Αποτέλεσμα)-MIN(ROW(Αποτέλεσμα))+1),ROWS($B$3:B30))))&CHAR(10),\"\")","v":""},null,{"$f":"IFERROR(INDEX(Δραστηριότητα,SMALL(IF(Στόχος=$D$2,ROW(Δραστηριότητα)-MIN(ROW(Δραστηριότητα))+1),ROWS($B$3:B30)))&CHAR(10),\"\")","v":""},null,{"$f":"IFERROR(INDEX(Δραστηριότητα,SMALL(IF(Στόχος=$F$2,ROW(Δραστηριότητα)-MIN(ROW(Δραστηριότητα))+1),ROWS($B$3:B30)))&CHAR(10),\"\")","v":""},null,{"$f":"IFERROR(INDEX(Δραστηριότητα,SMALL(IF(Στόχος=$H$2,ROW(Δραστηριότητα)-MIN(ROW(Δραστηριότητα))+1),ROWS($B$3:B30)))&CHAR(10),\"\")","v":""}]
[null,{"$f":"IFERROR(INDEX(Δραστηριότητα,SMALL(IF(Στόχος=$B$2,ROW(Δραστηριότητα)-MIN(ROW(Δραστηριότητα))+1),ROWS($B$3:B31)))&\" \"&CHAR(10)&(INDEX(Αποτέλεσμα,SMALL(IF(Στόχος=$B$2,ROW(Αποτέλεσμα)-MIN(ROW(Αποτέλεσμα))+1),ROWS($B$3:B31))))&CHAR(10),\"\")","v":""},null,{"$f":"IFERROR(INDEX(Δραστηριότητα,SMALL(IF(Στόχος=$D$2,ROW(Δραστηριότητα)-MIN(ROW(Δραστηριότητα))+1),ROWS($B$3:B31)))&CHAR(10),\"\")","v":""},null,{"$f":"IFERROR(INDEX(Δραστηριότητα,SMALL(IF(Στόχος=$F$2,ROW(Δραστηριότητα)-MIN(ROW(Δραστηριότητα))+1),ROWS($B$3:B31)))&CHAR(10),\"\")","v":""},null,{"$f":"IFERROR(INDEX(Δραστηριότητα,SMALL(IF(Στόχος=$H$2,ROW(Δραστηριότητα)-MIN(ROW(Δραστηριότητα))+1),ROWS($B$3:B31)))&CHAR(10),\"\")","v":""}]
[null,{"$f":"IFERROR(INDEX(Δραστηριότητα,SMALL(IF(Στόχος=$B$2,ROW(Δραστηριότητα)-MIN(ROW(Δραστηριότητα))+1),ROWS($B$3:B32)))&\" \"&CHAR(10)&(INDEX(Αποτέλεσμα,SMALL(IF(Στόχος=$B$2,ROW(Αποτέλεσμα)-MIN(ROW(Αποτέλεσμα))+1),ROWS($B$3:B32))))&CHAR(10),\"\")","v":""},null,{"$f":"IFERROR(INDEX(Δραστηριότητα,SMALL(IF(Στόχος=$D$2,ROW(Δραστηριότητα)-MIN(ROW(Δραστηριότητα))+1),ROWS($B$3:B32)))&CHAR(10),\"\")","v":""},null,{"$f":"IFERROR(INDEX(Δραστηριότητα,SMALL(IF(Στόχος=$F$2,ROW(Δραστηριότητα)-MIN(ROW(Δραστηριότητα))+1),ROWS($B$3:B32)))&CHAR(10),\"\")","v":""},null,{"$f":"IFERROR(INDEX(Δραστηριότητα,SMALL(IF(Στόχος=$H$2,ROW(Δραστηριότητα)-MIN(ROW(Δραστηριότητα))+1),ROWS($B$3:B32)))&CHAR(10),\"\")","v":""}]
[null,{"$f":"IFERROR(INDEX(Δραστηριότητα,SMALL(IF(Στόχος=$B$2,ROW(Δραστηριότητα)-MIN(ROW(Δραστηριότητα))+1),ROWS($B$3:B33)))&\" \"&CHAR(10)&(INDEX(Αποτέλεσμα,SMALL(IF(Στόχος=$B$2,ROW(Αποτέλεσμα)-MIN(ROW(Αποτέλεσμα))+1),ROWS($B$3:B33))))&CHAR(10),\"\")","v":""},null,{"$f":"IFERROR(INDEX(Δραστηριότητα,SMALL(IF(Στόχος=$D$2,ROW(Δραστηριότητα)-MIN(ROW(Δραστηριότητα))+1),ROWS($B$3:B33)))&CHAR(10),\"\")","v":""},null,{"$f":"IFERROR(INDEX(Δραστηριότητα,SMALL(IF(Στόχος=$F$2,ROW(Δραστηριότητα)-MIN(ROW(Δραστηριότητα))+1),ROWS($B$3:B33)))&CHAR(10),\"\")","v":""},null,{"$f":"IFERROR(INDEX(Δραστηριότητα,SMALL(IF(Στόχος=$H$2,ROW(Δραστηριότητα)-MIN(ROW(Δραστηριότητα))+1),ROWS($B$3:B33)))&CHAR(10),\"\")","v":""}]
[null,{"$f":"IFERROR(INDEX(Δραστηριότητα,SMALL(IF(Στόχος=$B$2,ROW(Δραστηριότητα)-MIN(ROW(Δραστηριότητα))+1),ROWS($B$3:B34)))&\" \"&CHAR(10)&(INDEX(Αποτέλεσμα,SMALL(IF(Στόχος=$B$2,ROW(Αποτέλεσμα)-MIN(ROW(Αποτέλεσμα))+1),ROWS($B$3:B34))))&CHAR(10),\"\")","v":""},null,{"$f":"IFERROR(INDEX(Δραστηριότητα,SMALL(IF(Στόχος=$D$2,ROW(Δραστηριότητα)-MIN(ROW(Δραστηριότητα))+1),ROWS($B$3:B34)))&CHAR(10),\"\")","v":""},null,{"$f":"IFERROR(INDEX(Δραστηριότητα,SMALL(IF(Στόχος=$F$2,ROW(Δραστηριότητα)-MIN(ROW(Δραστηριότητα))+1),ROWS($B$3:B34)))&CHAR(10),\"\")","v":""},null,{"$f":"IFERROR(INDEX(Δραστηριότητα,SMALL(IF(Στόχος=$H$2,ROW(Δραστηριότητα)-MIN(ROW(Δραστηριότητα))+1),ROWS($B$3:B34)))&CHAR(10),\"\")","v":""}]
[null,{"$f":"IFERROR(INDEX(Δραστηριότητα,SMALL(IF(Στόχος=$B$2,ROW(Δραστηριότητα)-MIN(ROW(Δραστηριότητα))+1),ROWS($B$3:B35)))&\" \"&CHAR(10)&(INDEX(Αποτέλεσμα,SMALL(IF(Στόχος=$B$2,ROW(Αποτέλεσμα)-MIN(ROW(Αποτέλεσμα))+1),ROWS($B$3:B35))))&CHAR(10),\"\")","v":""},null,{"$f":"IFERROR(INDEX(Δραστηριότητα,SMALL(IF(Στόχος=$D$2,ROW(Δραστηριότητα)-MIN(ROW(Δραστηριότητα))+1),ROWS($B$3:B35)))&CHAR(10),\"\")","v":""},null,{"$f":"IFERROR(INDEX(Δραστηριότητα,SMALL(IF(Στόχος=$F$2,ROW(Δραστηριότητα)-MIN(ROW(Δραστηριότητα))+1),ROWS($B$3:B35)))&CHAR(10),\"\")","v":""},null,{"$f":"IFERROR(INDEX(Δραστηριότητα,SMALL(IF(Στόχος=$H$2,ROW(Δραστηριότητα)-MIN(ROW(Δραστηριότητα))+1),ROWS($B$3:B35)))&CHAR(10),\"\")","v":""}]
[null,{"$f":"IFERROR(INDEX(Δραστηριότητα,SMALL(IF(Στόχος=$B$2,ROW(Δραστηριότητα)-MIN(ROW(Δραστηριότητα))+1),ROWS($B$3:B36)))&\" \"&CHAR(10)&(INDEX(Αποτέλεσμα,SMALL(IF(Στόχος=$B$2,ROW(Αποτέλεσμα)-MIN(ROW(Αποτέλεσμα))+1),ROWS($B$3:B36))))&CHAR(10),\"\")","v":""},null,{"$f":"IFERROR(INDEX(Δραστηριότητα,SMALL(IF(Στόχος=$D$2,ROW(Δραστηριότητα)-MIN(ROW(Δραστηριότητα))+1),ROWS($B$3:B36)))&CHAR(10),\"\")","v":""},null,{"$f":"IFERROR(INDEX(Δραστηριότητα,SMALL(IF(Στόχος=$F$2,ROW(Δραστηριότητα)-MIN(ROW(Δραστηριότητα))+1),ROWS($B$3:B36)))&CHAR(10),\"\")","v":""},null,{"$f":"IFERROR(INDEX(Δραστηριότητα,SMALL(IF(Στόχος=$H$2,ROW(Δραστηριότητα)-MIN(ROW(Δραστηριότητα))+1),ROWS($B$3:B36)))&CHAR(10),\"\")","v":""}]
[null,{"$f":"IFERROR(INDEX(Δραστηριότητα,SMALL(IF(Στόχος=$B$2,ROW(Δραστηριότητα)-MIN(ROW(Δραστηριότητα))+1),ROWS($B$3:B37)))&\" \"&CHAR(10)&(INDEX(Αποτέλεσμα,SMALL(IF(Στόχος=$B$2,ROW(Αποτέλεσμα)-MIN(ROW(Αποτέλεσμα))+1),ROWS($B$3:B37))))&CHAR(10),\"\")","v":""},null,{"$f":"IFERROR(INDEX(Δραστηριότητα,SMALL(IF(Στόχος=$D$2,ROW(Δραστηριότητα)-MIN(ROW(Δραστηριότητα))+1),ROWS($B$3:B37)))&CHAR(10),\"\")","v":""},null,{"$f":"IFERROR(INDEX(Δραστηριότητα,SMALL(IF(Στόχος=$F$2,ROW(Δραστηριότητα)-MIN(ROW(Δραστηριότητα))+1),ROWS($B$3:B37)))&CHAR(10),\"\")","v":""},null,{"$f":"IFERROR(INDEX(Δραστηριότητα,SMALL(IF(Στόχος=$H$2,ROW(Δραστηριότητα)-MIN(ROW(Δραστηριότητα))+1),ROWS($B$3:B37)))&CHAR(10),\"\")","v":""}]
[null,{"$f":"IFERROR(INDEX(Δραστηριότητα,SMALL(IF(Στόχος=$B$2,ROW(Δραστηριότητα)-MIN(ROW(Δραστηριότητα))+1),ROWS($B$3:B38)))&\" \"&CHAR(10)&(INDEX(Αποτέλεσμα,SMALL(IF(Στόχος=$B$2,ROW(Αποτέλεσμα)-MIN(ROW(Αποτέλεσμα))+1),ROWS($B$3:B38))))&CHAR(10),\"\")","v":""},null,{"$f":"IFERROR(INDEX(Δραστηριότητα,SMALL(IF(Στόχος=$D$2,ROW(Δραστηριότητα)-MIN(ROW(Δραστηριότητα))+1),ROWS($B$3:B38)))&CHAR(10),\"\")","v":""},null,{"$f":"IFERROR(INDEX(Δραστηριότητα,SMALL(IF(Στόχος=$F$2,ROW(Δραστηριότητα)-MIN(ROW(Δραστηριότητα))+1),ROWS($B$3:B38)))&CHAR(10),\"\")","v":""},null,{"$f":"IFERROR(INDEX(Δραστηριότητα,SMALL(IF(Στόχος=$H$2,ROW(Δραστηριότητα)-MIN(ROW(Δραστηριότητα))+1),ROWS($B$3:B38)))&CHAR(10),\"\")","v":""}]
[null,{"$f":"IFERROR(INDEX(Δραστηριότητα,SMALL(IF(Στόχος=$B$2,ROW(Δραστηριότητα)-MIN(ROW(Δραστηριότητα))+1),ROWS($B$3:B39)))&\" \"&CHAR(10)&(INDEX(Αποτέλεσμα,SMALL(IF(Στόχος=$B$2,ROW(Αποτέλεσμα)-MIN(ROW(Αποτέλεσμα))+1),ROWS($B$3:B39))))&CHAR(10),\"\")","v":""},null,{"$f":"IFERROR(INDEX(Δραστηριότητα,SMALL(IF(Στόχος=$D$2,ROW(Δραστηριότητα)-MIN(ROW(Δραστηριότητα))+1),ROWS($B$3:B39)))&CHAR(10),\"\")","v":""},null,{"$f":"IFERROR(INDEX(Δραστηριότητα,SMALL(IF(Στόχος=$F$2,ROW(Δραστηριότητα)-MIN(ROW(Δραστηριότητα))+1),ROWS($B$3:B39)))&CHAR(10),\"\")","v":""},null,{"$f":"IFERROR(INDEX(Δραστηριότητα,SMALL(IF(Στόχος=$H$2,ROW(Δραστηριότητα)-MIN(ROW(Δραστηριότητα))+1),ROWS($B$3:B39)))&CHAR(10),\"\")","v":""}]
[null,{"$f":"IFERROR(INDEX(Δραστηριότητα,SMALL(IF(Στόχος=$B$2,ROW(Δραστηριότητα)-MIN(ROW(Δραστηριότητα))+1),ROWS($B$3:B40)))&\" \"&CHAR(10)&(INDEX(Αποτέλεσμα,SMALL(IF(Στόχος=$B$2,ROW(Αποτέλεσμα)-MIN(ROW(Αποτέλεσμα))+1),ROWS($B$3:B40))))&CHAR(10),\"\")","v":""},null,{"$f":"IFERROR(INDEX(Δραστηριότητα,SMALL(IF(Στόχος=$D$2,ROW(Δραστηριότητα)-MIN(ROW(Δραστηριότητα))+1),ROWS($B$3:B40)))&CHAR(10),\"\")","v":""},null,{"$f":"IFERROR(INDEX(Δραστηριότητα,SMALL(IF(Στόχος=$F$2,ROW(Δραστηριότητα)-MIN(ROW(Δραστηριότητα))+1),ROWS($B$3:B40)))&CHAR(10),\"\")","v":""},null,{"$f":"IFERROR(INDEX(Δραστηριότητα,SMALL(IF(Στόχος=$H$2,ROW(Δραστηριότητα)-MIN(ROW(Δραστηριότητα))+1),ROWS($B$3:B40)))&CHAR(10),\"\")","v":""}]
[null,{"$f":"IFERROR(INDEX(Δραστηριότητα,SMALL(IF(Στόχος=$B$2,ROW(Δραστηριότητα)-MIN(ROW(Δραστηριότητα))+1),ROWS($B$3:B41)))&\" \"&CHAR(10)&(INDEX(Αποτέλεσμα,SMALL(IF(Στόχος=$B$2,ROW(Αποτέλεσμα)-MIN(ROW(Αποτέλεσμα))+1),ROWS($B$3:B41))))&CHAR(10),\"\")","v":""},null,{"$f":"IFERROR(INDEX(Δραστηριότητα,SMALL(IF(Στόχος=$D$2,ROW(Δραστηριότητα)-MIN(ROW(Δραστηριότητα))+1),ROWS($B$3:B41)))&CHAR(10),\"\")","v":""},null,{"$f":"IFERROR(INDEX(Δραστηριότητα,SMALL(IF(Στόχος=$F$2,ROW(Δραστηριότητα)-MIN(ROW(Δραστηριότητα))+1),ROWS($B$3:B41)))&CHAR(10),\"\")","v":""},null,{"$f":"IFERROR(INDEX(Δραστηριότητα,SMALL(IF(Στόχος=$H$2,ROW(Δραστηριότητα)-MIN(ROW(Δραστηριότητα))+1),ROWS($B$3:B41)))&CHAR(10),\"\")","v":""}]
[null,{"$f":"IFERROR(INDEX(Δραστηριότητα,SMALL(IF(Στόχος=$B$2,ROW(Δραστηριότητα)-MIN(ROW(Δραστηριότητα))+1),ROWS($B$3:B42)))&\" \"&CHAR(10)&(INDEX(Αποτέλεσμα,SMALL(IF(Στόχος=$B$2,ROW(Αποτέλεσμα)-MIN(ROW(Αποτέλεσμα))+1),ROWS($B$3:B42))))&CHAR(10),\"\")","v":""},null,{"$f":"IFERROR(INDEX(Δραστηριότητα,SMALL(IF(Στόχος=$D$2,ROW(Δραστηριότητα)-MIN(ROW(Δραστηριότητα))+1),ROWS($B$3:B42)))&CHAR(10),\"\")","v":""},null,{"$f":"IFERROR(INDEX(Δραστηριότητα,SMALL(IF(Στόχος=$F$2,ROW(Δραστηριότητα)-MIN(ROW(Δραστηριότητα))+1),ROWS($B$3:B42)))&CHAR(10),\"\")","v":""},null,{"$f":"IFERROR(INDEX(Δραστηριότητα,SMALL(IF(Στόχος=$H$2,ROW(Δραστηριότητα)-MIN(ROW(Δραστηριότητα))+1),ROWS($B$3:B42)))&CHAR(10),\"\")","v":""}]
[null,{"$f":"IFERROR(INDEX(Δραστηριότητα,SMALL(IF(Στόχος=$B$2,ROW(Δραστηριότητα)-MIN(ROW(Δραστηριότητα))+1),ROWS($B$3:B43)))&\" \"&CHAR(10)&(INDEX(Αποτέλεσμα,SMALL(IF(Στόχος=$B$2,ROW(Αποτέλεσμα)-MIN(ROW(Αποτέλεσμα))+1),ROWS($B$3:B43))))&CHAR(10),\"\")","v":""},null,{"$f":"IFERROR(INDEX(Δραστηριότητα,SMALL(IF(Στόχος=$D$2,ROW(Δραστηριότητα)-MIN(ROW(Δραστηριότητα))+1),ROWS($B$3:B43)))&CHAR(10),\"\")","v":""},null,{"$f":"IFERROR(INDEX(Δραστηριότητα,SMALL(IF(Στόχος=$F$2,ROW(Δραστηριότητα)-MIN(ROW(Δραστηριότητα))+1),ROWS($B$3:B43)))&CHAR(10),\"\")","v":""},null,{"$f":"IFERROR(INDEX(Δραστηριότητα,SMALL(IF(Στόχος=$H$2,ROW(Δραστηριότητα)-MIN(ROW(Δραστηριότητα))+1),ROWS($B$3:B43)))&CHAR(10),\"\")","v":""}]
[null,{"$f":"IFERROR(INDEX(Δραστηριότητα,SMALL(IF(Στόχος=$B$2,ROW(Δραστηριότητα)-MIN(ROW(Δραστηριότητα))+1),ROWS($B$3:B44)))&\" \"&CHAR(10)&(INDEX(Αποτέλεσμα,SMALL(IF(Στόχος=$B$2,ROW(Αποτέλεσμα)-MIN(ROW(Αποτέλεσμα))+1),ROWS($B$3:B44))))&CHAR(10),\"\")","v":""},null,{"$f":"IFERROR(INDEX(Δραστηριότητα,SMALL(IF(Στόχος=$D$2,ROW(Δραστηριότητα)-MIN(ROW(Δραστηριότητα))+1),ROWS($B$3:B44)))&CHAR(10),\"\")","v":""},null,{"$f":"IFERROR(INDEX(Δραστηριότητα,SMALL(IF(Στόχος=$F$2,ROW(Δραστηριότητα)-MIN(ROW(Δραστηριότητα))+1),ROWS($B$3:B44)))&CHAR(10),\"\")","v":""},null,{"$f":"IFERROR(INDEX(Δραστηριότητα,SMALL(IF(Στόχος=$H$2,ROW(Δραστηριότητα)-MIN(ROW(Δραστηριότητα))+1),ROWS($B$3:B44)))&CHAR(10),\"\")","v":""}]
[null,{"$f":"IFERROR(INDEX(Δραστηριότητα,SMALL(IF(Στόχος=$B$2,ROW(Δραστηριότητα)-MIN(ROW(Δραστηριότητα))+1),ROWS($B$3:B45)))&\" \"&CHAR(10)&(INDEX(Αποτέλεσμα,SMALL(IF(Στόχος=$B$2,ROW(Αποτέλεσμα)-MIN(ROW(Αποτέλεσμα))+1),ROWS($B$3:B45))))&CHAR(10),\"\")","v":""},null,{"$f":"IFERROR(INDEX(Δραστηριότητα,SMALL(IF(Στόχος=$D$2,ROW(Δραστηριότητα)-MIN(ROW(Δραστηριότητα))+1),ROWS($B$3:B45)))&CHAR(10),\"\")","v":""},null,{"$f":"IFERROR(INDEX(Δραστηριότητα,SMALL(IF(Στόχος=$F$2,ROW(Δραστηριότητα)-MIN(ROW(Δραστηριότητα))+1),ROWS($B$3:B45)))&CHAR(10),\"\")","v":""},null,{"$f":"IFERROR(INDEX(Δραστηριότητα,SMALL(IF(Στόχος=$H$2,ROW(Δραστηριότητα)-MIN(ROW(Δραστηριότητα))+1),ROWS($B$3:B45)))&CHAR(10),\"\")","v":""}]
[null,{"$f":"IFERROR(INDEX(Δραστηριότητα,SMALL(IF(Στόχος=$B$2,ROW(Δραστηριότητα)-MIN(ROW(Δραστηριότητα))+1),ROWS($B$3:B46)))&\" \"&CHAR(10)&(INDEX(Αποτέλεσμα,SMALL(IF(Στόχος=$B$2,ROW(Αποτέλεσμα)-MIN(ROW(Αποτέλεσμα))+1),ROWS($B$3:B46))))&CHAR(10),\"\")","v":""},null,{"$f":"IFERROR(INDEX(Δραστηριότητα,SMALL(IF(Στόχος=$D$2,ROW(Δραστηριότητα)-MIN(ROW(Δραστηριότητα))+1),ROWS($B$3:B46)))&CHAR(10),\"\")","v":""},null,{"$f":"IFERROR(INDEX(Δραστηριότητα,SMALL(IF(Στόχος=$F$2,ROW(Δραστηριότητα)-MIN(ROW(Δραστηριότητα))+1),ROWS($B$3:B46)))&CHAR(10),\"\")","v":""},null,{"$f":"IFERROR(INDEX(Δραστηριότητα,SMALL(IF(Στόχος=$H$2,ROW(Δραστηριότητα)-MIN(ROW(Δραστηριότητα))+1),ROWS($B$3:B46)))&CHAR(10),\"\")","v":""}]
[null,{"$f":"IFERROR(INDEX(Δραστηριότητα,SMALL(IF(Στόχος=$B$2,ROW(Δραστηριότητα)-MIN(ROW(Δραστηριότητα))+1),ROWS($B$3:B47)))&\" \"&CHAR(10)&(INDEX(Αποτέλεσμα,SMALL(IF(Στόχος=$B$2,ROW(Αποτέλεσμα)-MIN(ROW(Αποτέλεσμα))+1),ROWS($B$3:B47))))&CHAR(10),\"\")","v":""},null,{"$f":"IFERROR(INDEX(Δραστηριότητα,SMALL(IF(Στόχος=$D$2,ROW(Δραστηριότητα)-MIN(ROW(Δραστηριότητα))+1),ROWS($B$3:B47)))&CHAR(10),\"\")","v":""},null,{"$f":"IFERROR(INDEX(Δραστηριότητα,SMALL(IF(Στόχος=$F$2,ROW(Δραστηριότητα)-MIN(ROW(Δραστηριότητα))+1),ROWS($B$3:B47)))&CHAR(10),\"\")","v":""},null,{"$f":"IFERROR(INDEX(Δραστηριότητα,SMALL(IF(Στόχος=$H$2,ROW(Δραστηριότητα)-MIN(ROW(Δραστηριότητα))+1),ROWS($B$3:B47)))&CHAR(10),\"\")","v":""}]
[null,{"$f":"IFERROR(INDEX(Δραστηριότητα,SMALL(IF(Στόχος=$B$2,ROW(Δραστηριότητα)-MIN(ROW(Δραστηριότητα))+1),ROWS($B$3:B48)))&\" \"&CHAR(10)&(INDEX(Αποτέλεσμα,SMALL(IF(Στόχος=$B$2,ROW(Αποτέλεσμα)-MIN(ROW(Αποτέλεσμα))+1),ROWS($B$3:B48))))&CHAR(10),\"\")","v":""},null,{"$f":"IFERROR(INDEX(Δραστηριότητα,SMALL(IF(Στόχος=$D$2,ROW(Δραστηριότητα)-MIN(ROW(Δραστηριότητα))+1),ROWS($B$3:B48)))&CHAR(10),\"\")","v":""},null,{"$f":"IFERROR(INDEX(Δραστηριότητα,SMALL(IF(Στόχος=$F$2,ROW(Δραστηριότητα)-MIN(ROW(Δραστηριότητα))+1),ROWS($B$3:B48)))&CHAR(10),\"\")","v":""},null,{"$f":"IFERROR(INDEX(Δραστηριότητα,SMALL(IF(Στόχος=$H$2,ROW(Δραστηριότητα)-MIN(ROW(Δραστηριότητα))+1),ROWS($B$3:B48)))&CHAR(10),\"\")","v":""}]
[null,{"$f":"IFERROR(INDEX(Δραστηριότητα,SMALL(IF(Στόχος=$B$2,ROW(Δραστηριότητα)-MIN(ROW(Δραστηριότητα))+1),ROWS($B$3:B49)))&\" \"&CHAR(10)&(INDEX(Αποτέλεσμα,SMALL(IF(Στόχος=$B$2,ROW(Αποτέλεσμα)-MIN(ROW(Αποτέλεσμα))+1),ROWS($B$3:B49))))&CHAR(10),\"\")","v":""},null,{"$f":"IFERROR(INDEX(Δραστηριότητα,SMALL(IF(Στόχος=$D$2,ROW(Δραστηριότητα)-MIN(ROW(Δραστηριότητα))+1),ROWS($B$3:B49)))&CHAR(10),\"\")","v":""},null,{"$f":"IFERROR(INDEX(Δραστηριότητα,SMALL(IF(Στόχος=$F$2,ROW(Δραστηριότητα)-MIN(ROW(Δραστηριότητα))+1),ROWS($B$3:B49)))&CHAR(10),\"\")","v":""},null,{"$f":"IFERROR(INDEX(Δραστηριότητα,SMALL(IF(Στόχος=$H$2,ROW(Δραστηριότητα)-MIN(ROW(Δραστηριότητα))+1),ROWS($B$3:B49)))&CHAR(10),\"\")","v":""}]
[null,{"$f":"IFERROR(INDEX(Δραστηριότητα,SMALL(IF(Στόχος=$B$2,ROW(Δραστηριότητα)-MIN(ROW(Δραστηριότητα))+1),ROWS($B$3:B50)))&\" \"&CHAR(10)&(INDEX(Αποτέλεσμα,SMALL(IF(Στόχος=$B$2,ROW(Αποτέλεσμα)-MIN(ROW(Αποτέλεσμα))+1),ROWS($B$3:B50))))&CHAR(10),\"\")","v":""},null,{"$f":"IFERROR(INDEX(Δραστηριότητα,SMALL(IF(Στόχος=$D$2,ROW(Δραστηριότητα)-MIN(ROW(Δραστηριότητα))+1),ROWS($B$3:B50)))&CHAR(10),\"\")","v":""},null,{"$f":"IFERROR(INDEX(Δραστηριότητα,SMALL(IF(Στόχος=$F$2,ROW(Δραστηριότητα)-MIN(ROW(Δραστηριότητα))+1),ROWS($B$3:B50)))&CHAR(10),\"\")","v":""},null,{"$f":"IFERROR(INDEX(Δραστηριότητα,SMALL(IF(Στόχος=$H$2,ROW(Δραστηριότητα)-MIN(ROW(Δραστηριότητα))+1),ROWS($B$3:B50)))&CHAR(10),\"\")","v":""}]
[null,{"$f":"IFERROR(INDEX(Δραστηριότητα,SMALL(IF(Στόχος=$B$2,ROW(Δραστηριότητα)-MIN(ROW(Δραστηριότητα))+1),ROWS($B$3:B51)))&\" \"&CHAR(10)&(INDEX(Αποτέλεσμα,SMALL(IF(Στόχος=$B$2,ROW(Αποτέλεσμα)-MIN(ROW(Αποτέλεσμα))+1),ROWS($B$3:B51))))&CHAR(10),\"\")","v":""},null,{"$f":"IFERROR(INDEX(Δραστηριότητα,SMALL(IF(Στόχος=$D$2,ROW(Δραστηριότητα)-MIN(ROW(Δραστηριότητα))+1),ROWS($B$3:B51)))&CHAR(10),\"\")","v":""},null,{"$f":"IFERROR(INDEX(Δραστηριότητα,SMALL(IF(Στόχος=$F$2,ROW(Δραστηριότητα)-MIN(ROW(Δραστηριότητα))+1),ROWS($B$3:B51)))&CHAR(10),\"\")","v":""},null,{"$f":"IFERROR(INDEX(Δραστηριότητα,SMALL(IF(Στόχος=$H$2,ROW(Δραστηριότητα)-MIN(ROW(Δραστηριότητα))+1),ROWS($B$3:B51)))&CHAR(10),\"\")","v":""}]
[null,{"$f":"IFERROR(INDEX(Δραστηριότητα,SMALL(IF(Στόχος=$B$2,ROW(Δραστηριότητα)-MIN(ROW(Δραστηριότητα))+1),ROWS($B$3:B52)))&\" \"&CHAR(10)&(INDEX(Αποτέλεσμα,SMALL(IF(Στόχος=$B$2,ROW(Αποτέλεσμα)-MIN(ROW(Αποτέλεσμα))+1),ROWS($B$3:B52))))&CHAR(10),\"\")","v":""},null,{"$f":"IFERROR(INDEX(Δραστηριότητα,SMALL(IF(Στόχος=$D$2,ROW(Δραστηριότητα)-MIN(ROW(Δραστηριότητα))+1),ROWS($B$3:B52)))&CHAR(10),\"\")","v":""},null,{"$f":"IFERROR(INDEX(Δραστηριότητα,SMALL(IF(Στόχος=$F$2,ROW(Δραστηριότητα)-MIN(ROW(Δραστηριότητα))+1),ROWS($B$3:B52)))&CHAR(10),\"\")","v":""},null,{"$f":"IFERROR(INDEX(Δραστηριότητα,SMALL(IF(Στόχος=$H$2,ROW(Δραστηριότητα)-MIN(ROW(Δραστηριότητα))+1),ROWS($B$3:B52)))&CHAR(10),\"\")","v":""}]
[null,{"$f":"IFERROR(INDEX(Δραστηριότητα,SMALL(IF(Στόχος=$B$2,ROW(Δραστηριότητα)-MIN(ROW(Δραστηριότητα))+1),ROWS($B$3:B53)))&\" \"&CHAR(10)&(INDEX(Αποτέλεσμα,SMALL(IF(Στόχος=$B$2,ROW(Αποτέλεσμα)-MIN(ROW(Αποτέλεσμα))+1),ROWS($B$3:B53))))&CHAR(10),\"\")","v":""},null,{"$f":"IFERROR(INDEX(Δραστηριότητα,SMALL(IF(Στόχος=$D$2,ROW(Δραστηριότητα)-MIN(ROW(Δραστηριότητα))+1),ROWS($B$3:B53)))&CHAR(10),\"\")","v":""},null,{"$f":"IFERROR(INDEX(Δραστηριότητα,SMALL(IF(Στόχος=$F$2,ROW(Δραστηριότητα)-MIN(ROW(Δραστηριότητα))+1),ROWS($B$3:B53)))&CHAR(10),\"\")","v":""},null,{"$f":"IFERROR(INDEX(Δραστηριότητα,SMALL(IF(Στόχος=$H$2,ROW(Δραστηριότητα)-MIN(ROW(Δραστηριότητα))+1),ROWS($B$3:B53)))&CHAR(10),\"\")","v":""}]
[null,{"$f":"IFERROR(INDEX(Δραστηριότητα,SMALL(IF(Στόχος=$B$2,ROW(Δραστηριότητα)-MIN(ROW(Δραστηριότητα))+1),ROWS($B$3:B54)))&\" \"&CHAR(10)&(INDEX(Αποτέλεσμα,SMALL(IF(Στόχος=$B$2,ROW(Αποτέλεσμα)-MIN(ROW(Αποτέλεσμα))+1),ROWS($B$3:B54))))&CHAR(10),\"\")","v":""},null,{"$f":"IFERROR(INDEX(Δραστηριότητα,SMALL(IF(Στόχος=$D$2,ROW(Δραστηριότητα)-MIN(ROW(Δραστηριότητα))+1),ROWS($B$3:B54)))&CHAR(10),\"\")","v":""},null,{"$f":"IFERROR(INDEX(Δραστηριότητα,SMALL(IF(Στόχος=$F$2,ROW(Δραστηριότητα)-MIN(ROW(Δραστηριότητα))+1),ROWS($B$3:B54)))&CHAR(10),\"\")","v":""},null,{"$f":"IFERROR(INDEX(Δραστηριότητα,SMALL(IF(Στόχος=$H$2,ROW(Δραστηριότητα)-MIN(ROW(Δραστηριότητα))+1),ROWS($B$3:B54)))&CHAR(10),\"\")","v":""}]
[null,{"$f":"IFERROR(INDEX(Δραστηριότητα,SMALL(IF(Στόχος=$B$2,ROW(Δραστηριότητα)-MIN(ROW(Δραστηριότητα))+1),ROWS($B$3:B55)))&\" \"&CHAR(10)&(INDEX(Αποτέλεσμα,SMALL(IF(Στόχος=$B$2,ROW(Αποτέλεσμα)-MIN(ROW(Αποτέλεσμα))+1),ROWS($B$3:B55))))&CHAR(10),\"\")","v":""},null,{"$f":"IFERROR(INDEX(Δραστηριότητα,SMALL(IF(Στόχος=$D$2,ROW(Δραστηριότητα)-MIN(ROW(Δραστηριότητα))+1),ROWS($B$3:B55)))&CHAR(10),\"\")","v":""},null,{"$f":"IFERROR(INDEX(Δραστηριότητα,SMALL(IF(Στόχος=$F$2,ROW(Δραστηριότητα)-MIN(ROW(Δραστηριότητα))+1),ROWS($B$3:B55)))&CHAR(10),\"\")","v":""},null,{"$f":"IFERROR(INDEX(Δραστηριότητα,SMALL(IF(Στόχος=$H$2,ROW(Δραστηριότητα)-MIN(ROW(Δραστηριότητα))+1),ROWS($B$3:B55)))&CHAR(10),\"\")","v":""}]
[null,{"$f":"IFERROR(INDEX(Δραστηριότητα,SMALL(IF(Στόχος=$B$2,ROW(Δραστηριότητα)-MIN(ROW(Δραστηριότητα))+1),ROWS($B$3:B56)))&\" \"&CHAR(10)&(INDEX(Αποτέλεσμα,SMALL(IF(Στόχος=$B$2,ROW(Αποτέλεσμα)-MIN(ROW(Αποτέλεσμα))+1),ROWS($B$3:B56))))&CHAR(10),\"\")","v":""},null,{"$f":"IFERROR(INDEX(Δραστηριότητα,SMALL(IF(Στόχος=$D$2,ROW(Δραστηριότητα)-MIN(ROW(Δραστηριότητα))+1),ROWS($B$3:B56)))&CHAR(10),\"\")","v":""},null,{"$f":"IFERROR(INDEX(Δραστηριότητα,SMALL(IF(Στόχος=$F$2,ROW(Δραστηριότητα)-MIN(ROW(Δραστηριότητα))+1),ROWS($B$3:B56)))&CHAR(10),\"\")","v":""},null,{"$f":"IFERROR(INDEX(Δραστηριότητα,SMALL(IF(Στόχος=$H$2,ROW(Δραστηριότητα)-MIN(ROW(Δραστηριότητα))+1),ROWS($B$3:B56)))&CHAR(10),\"\")","v":""}]
[null,{"$f":"IFERROR(INDEX(Δραστηριότητα,SMALL(IF(Στόχος=$B$2,ROW(Δραστηριότητα)-MIN(ROW(Δραστηριότητα))+1),ROWS($B$3:B57)))&\" \"&CHAR(10)&(INDEX(Αποτέλεσμα,SMALL(IF(Στόχος=$B$2,ROW(Αποτέλεσμα)-MIN(ROW(Αποτέλεσμα))+1),ROWS($B$3:B57))))&CHAR(10),\"\")","v":""},null,{"$f":"IFERROR(INDEX(Δραστηριότητα,SMALL(IF(Στόχος=$D$2,ROW(Δραστηριότητα)-MIN(ROW(Δραστηριότητα))+1),ROWS($B$3:B57)))&CHAR(10),\"\")","v":""},null,{"$f":"IFERROR(INDEX(Δραστηριότητα,SMALL(IF(Στόχος=$F$2,ROW(Δραστηριότητα)-MIN(ROW(Δραστηριότητα))+1),ROWS($B$3:B57)))&CHAR(10),\"\")","v":""},null,{"$f":"IFERROR(INDEX(Δραστηριότητα,SMALL(IF(Στόχος=$H$2,ROW(Δραστηριότητα)-MIN(ROW(Δραστηριότητα))+1),ROWS($B$3:B57)))&CHAR(10),\"\")","v":""}]
[null,{"$f":"IFERROR(INDEX(Δραστηριότητα,SMALL(IF(Στόχος=$B$2,ROW(Δραστηριότητα)-MIN(ROW(Δραστηριότητα))+1),ROWS($B$3:B58)))&\" \"&CHAR(10)&(INDEX(Αποτέλεσμα,SMALL(IF(Στόχος=$B$2,ROW(Αποτέλεσμα)-MIN(ROW(Αποτέλεσμα))+1),ROWS($B$3:B58))))&CHAR(10),\"\")","v":""},null,{"$f":"IFERROR(INDEX(Δραστηριότητα,SMALL(IF(Στόχος=$D$2,ROW(Δραστηριότητα)-MIN(ROW(Δραστηριότητα))+1),ROWS($B$3:B58)))&CHAR(10),\"\")","v":""},null,{"$f":"IFERROR(INDEX(Δραστηριότητα,SMALL(IF(Στόχος=$F$2,ROW(Δραστηριότητα)-MIN(ROW(Δραστηριότητα))+1),ROWS($B$3:B58)))&CHAR(10),\"\")","v":""},null,{"$f":"IFERROR(INDEX(Δραστηριότητα,SMALL(IF(Στόχος=$H$2,ROW(Δραστηριότητα)-MIN(ROW(Δραστηριότητα))+1),ROWS($B$3:B58)))&CHAR(10),\"\")","v":""}]
[null,{"$f":"IFERROR(INDEX(Δραστηριότητα,SMALL(IF(Στόχος=$B$2,ROW(Δραστηριότητα)-MIN(ROW(Δραστηριότητα))+1),ROWS($B$3:B59)))&\" \"&CHAR(10)&(INDEX(Αποτέλεσμα,SMALL(IF(Στόχος=$B$2,ROW(Αποτέλεσμα)-MIN(ROW(Αποτέλεσμα))+1),ROWS($B$3:B59))))&CHAR(10),\"\")","v":""},null,{"$f":"IFERROR(INDEX(Δραστηριότητα,SMALL(IF(Στόχος=$D$2,ROW(Δραστηριότητα)-MIN(ROW(Δραστηριότητα))+1),ROWS($B$3:B59)))&CHAR(10),\"\")","v":""},null,{"$f":"IFERROR(INDEX(Δραστηριότητα,SMALL(IF(Στόχος=$F$2,ROW(Δραστηριότητα)-MIN(ROW(Δραστηριότητα))+1),ROWS($B$3:B59)))&CHAR(10),\"\")","v":""},null,{"$f":"IFERROR(INDEX(Δραστηριότητα,SMALL(IF(Στόχος=$H$2,ROW(Δραστηριότητα)-MIN(ROW(Δραστηριότητα))+1),ROWS($B$3:B59)))&CHAR(10),\"\")","v":""}]
[null,{"$f":"IFERROR(INDEX(Δραστηριότητα,SMALL(IF(Στόχος=$B$2,ROW(Δραστηριότητα)-MIN(ROW(Δραστηριότητα))+1),ROWS($B$3:B60)))&\" \"&CHAR(10)&(INDEX(Αποτέλεσμα,SMALL(IF(Στόχος=$B$2,ROW(Αποτέλεσμα)-MIN(ROW(Αποτέλεσμα))+1),ROWS($B$3:B60))))&CHAR(10),\"\")","v":""},null,{"$f":"IFERROR(INDEX(Δραστηριότητα,SMALL(IF(Στόχος=$D$2,ROW(Δραστηριότητα)-MIN(ROW(Δραστηριότητα))+1),ROWS($B$3:B60)))&CHAR(10),\"\")","v":""},null,{"$f":"IFERROR(INDEX(Δραστηριότητα,SMALL(IF(Στόχος=$F$2,ROW(Δραστηριότητα)-MIN(ROW(Δραστηριότητα))+1),ROWS($B$3:B60)))&CHAR(10),\"\")","v":""},null,{"$f":"IFERROR(INDEX(Δραστηριότητα,SMALL(IF(Στόχος=$H$2,ROW(Δραστηριότητα)-MIN(ROW(Δραστηριότητα))+1),ROWS($B$3:B60)))&CHAR(10),\"\")","v":""}]
[null,{"$f":"IFERROR(INDEX(Δραστηριότητα,SMALL(IF(Στόχος=$B$2,ROW(Δραστηριότητα)-MIN(ROW(Δραστηριότητα))+1),ROWS($B$3:B61)))&\" \"&CHAR(10)&(INDEX(Αποτέλεσμα,SMALL(IF(Στόχος=$B$2,ROW(Αποτέλεσμα)-MIN(ROW(Αποτέλεσμα))+1),ROWS($B$3:B61))))&CHAR(10),\"\")","v":""},null,{"$f":"IFERROR(INDEX(Δραστηριότητα,SMALL(IF(Στόχος=$D$2,ROW(Δραστηριότητα)-MIN(ROW(Δραστηριότητα))+1),ROWS($B$3:B61)))&CHAR(10),\"\")","v":""},null,{"$f":"IFERROR(INDEX(Δραστηριότητα,SMALL(IF(Στόχος=$F$2,ROW(Δραστηριότητα)-MIN(ROW(Δραστηριότητα))+1),ROWS($B$3:B61)))&CHAR(10),\"\")","v":""},null,{"$f":"IFERROR(INDEX(Δραστηριότητα,SMALL(IF(Στόχος=$H$2,ROW(Δραστηριότητα)-MIN(ROW(Δραστηριότητα))+1),ROWS($B$3:B61)))&CHAR(10),\"\")","v":""}]
[null,{"$f":"IFERROR(INDEX(Δραστηριότητα,SMALL(IF(Στόχος=$B$2,ROW(Δραστηριότητα)-MIN(ROW(Δραστηριότητα))+1),ROWS($B$3:B62)))&\" \"&CHAR(10)&(INDEX(Αποτέλεσμα,SMALL(IF(Στόχος=$B$2,ROW(Αποτέλεσμα)-MIN(ROW(Αποτέλεσμα))+1),ROWS($B$3:B62))))&CHAR(10),\"\")","v":""},null,{"$f":"IFERROR(INDEX(Δραστηριότητα,SMALL(IF(Στόχος=$D$2,ROW(Δραστηριότητα)-MIN(ROW(Δραστηριότητα))+1),ROWS($B$3:B62)))&CHAR(10),\"\")","v":""},null,{"$f":"IFERROR(INDEX(Δραστηριότητα,SMALL(IF(Στόχος=$F$2,ROW(Δραστηριότητα)-MIN(ROW(Δραστηριότητα))+1),ROWS($B$3:B62)))&CHAR(10),\"\")","v":""},null,{"$f":"IFERROR(INDEX(Δραστηριότητα,SMALL(IF(Στόχος=$H$2,ROW(Δραστηριότητα)-MIN(ROW(Δραστηριότητα))+1),ROWS($B$3:B62)))&CHAR(10),\"\")","v":""}]
[null,{"$f":"IFERROR(INDEX(Δραστηριότητα,SMALL(IF(Στόχος=$B$2,ROW(Δραστηριότητα)-MIN(ROW(Δραστηριότητα))+1),ROWS($B$3:B63)))&\" \"&CHAR(10)&(INDEX(Αποτέλεσμα,SMALL(IF(Στόχος=$B$2,ROW(Αποτέλεσμα)-MIN(ROW(Αποτέλεσμα))+1),ROWS($B$3:B63))))&CHAR(10),\"\")","v":""},null,{"$f":"IFERROR(INDEX(Δραστηριότητα,SMALL(IF(Στόχος=$D$2,ROW(Δραστηριότητα)-MIN(ROW(Δραστηριότητα))+1),ROWS($B$3:B63)))&CHAR(10),\"\")","v":""},null,{"$f":"IFERROR(INDEX(Δραστηριότητα,SMALL(IF(Στόχος=$F$2,ROW(Δραστηριότητα)-MIN(ROW(Δραστηριότητα))+1),ROWS($B$3:B63)))&CHAR(10),\"\")","v":""},null,{"$f":"IFERROR(INDEX(Δραστηριότητα,SMALL(IF(Στόχος=$H$2,ROW(Δραστηριότητα)-MIN(ROW(Δραστηριότητα))+1),ROWS($B$3:B63)))&CHAR(10),\"\")","v":""}]
[null,{"$f":"IFERROR(INDEX(Δραστηριότητα,SMALL(IF(Στόχος=$B$2,ROW(Δραστηριότητα)-MIN(ROW(Δραστηριότητα))+1),ROWS($B$3:B64)))&\" \"&CHAR(10)&(INDEX(Αποτέλεσμα,SMALL(IF(Στόχος=$B$2,ROW(Αποτέλεσμα)-MIN(ROW(Αποτέλεσμα))+1),ROWS($B$3:B64))))&CHAR(10),\"\")","v":""},null,{"$f":"IFERROR(INDEX(Δραστηριότητα,SMALL(IF(Στόχος=$D$2,ROW(Δραστηριότητα)-MIN(ROW(Δραστηριότητα))+1),ROWS($B$3:B64)))&CHAR(10),\"\")","v":""},null,{"$f":"IFERROR(INDEX(Δραστηριότητα,SMALL(IF(Στόχος=$F$2,ROW(Δραστηριότητα)-MIN(ROW(Δραστηριότητα))+1),ROWS($B$3:B64)))&CHAR(10),\"\")","v":""},null,{"$f":"IFERROR(INDEX(Δραστηριότητα,SMALL(IF(Στόχος=$H$2,ROW(Δραστηριότητα)-MIN(ROW(Δραστηριότητα))+1),ROWS($B$3:B64)))&CHAR(10),\"\")","v":""}]
[null,{"$f":"IFERROR(INDEX(Δραστηριότητα,SMALL(IF(Στόχος=$B$2,ROW(Δραστηριότητα)-MIN(ROW(Δραστηριότητα))+1),ROWS($B$3:B65)))&\" \"&CHAR(10)&(INDEX(Αποτέλεσμα,SMALL(IF(Στόχος=$B$2,ROW(Αποτέλεσμα)-MIN(ROW(Αποτέλεσμα))+1),ROWS($B$3:B65))))&CHAR(10),\"\")","v":""},null,{"$f":"IFERROR(INDEX(Δραστηριότητα,SMALL(IF(Στόχος=$D$2,ROW(Δραστηριότητα)-MIN(ROW(Δραστηριότητα))+1),ROWS($B$3:B65)))&CHAR(10),\"\")","v":""},null,{"$f":"IFERROR(INDEX(Δραστηριότητα,SMALL(IF(Στόχος=$F$2,ROW(Δραστηριότητα)-MIN(ROW(Δραστηριότητα))+1),ROWS($B$3:B65)))&CHAR(10),\"\")","v":""},null,{"$f":"IFERROR(INDEX(Δραστηριότητα,SMALL(IF(Στόχος=$H$2,ROW(Δραστηριότητα)-MIN(ROW(Δραστηριότητα))+1),ROWS($B$3:B65)))&CHAR(10),\"\")","v":""}]
[null,{"$f":"IFERROR(INDEX(Δραστηριότητα,SMALL(IF(Στόχος=$B$2,ROW(Δραστηριότητα)-MIN(ROW(Δραστηριότητα))+1),ROWS($B$3:B66)))&\" \"&CHAR(10)&(INDEX(Αποτέλεσμα,SMALL(IF(Στόχος=$B$2,ROW(Αποτέλεσμα)-MIN(ROW(Αποτέλεσμα))+1),ROWS($B$3:B66))))&CHAR(10),\"\")","v":""},null,{"$f":"IFERROR(INDEX(Δραστηριότητα,SMALL(IF(Στόχος=$D$2,ROW(Δραστηριότητα)-MIN(ROW(Δραστηριότητα))+1),ROWS($B$3:B66)))&CHAR(10),\"\")","v":""},null,{"$f":"IFERROR(INDEX(Δραστηριότητα,SMALL(IF(Στόχος=$F$2,ROW(Δραστηριότητα)-MIN(ROW(Δραστηριότητα))+1),ROWS($B$3:B66)))&CHAR(10),\"\")","v":""},null,{"$f":"IFERROR(INDEX(Δραστηριότητα,SMALL(IF(Στόχος=$H$2,ROW(Δραστηριότητα)-MIN(ROW(Δραστηριότητα))+1),ROWS($B$3:B66)))&CHAR(10),\"\")","v":""}]
[null,{"$f":"IFERROR(INDEX(Δραστηριότητα,SMALL(IF(Στόχος=$B$2,ROW(Δραστηριότητα)-MIN(ROW(Δραστηριότητα))+1),ROWS($B$3:B67)))&\" \"&CHAR(10)&(INDEX(Αποτέλεσμα,SMALL(IF(Στόχος=$B$2,ROW(Αποτέλεσμα)-MIN(ROW(Αποτέλεσμα))+1),ROWS($B$3:B67))))&CHAR(10),\"\")","v":""},null,{"$f":"IFERROR(INDEX(Δραστηριότητα,SMALL(IF(Στόχος=$D$2,ROW(Δραστηριότητα)-MIN(ROW(Δραστηριότητα))+1),ROWS($B$3:B67)))&CHAR(10),\"\")","v":""},null,{"$f":"IFERROR(INDEX(Δραστηριότητα,SMALL(IF(Στόχος=$F$2,ROW(Δραστηριότητα)-MIN(ROW(Δραστηριότητα))+1),ROWS($B$3:B67)))&CHAR(10),\"\")","v":""},null,{"$f":"IFERROR(INDEX(Δραστηριότητα,SMALL(IF(Στόχος=$H$2,ROW(Δραστηριότητα)-MIN(ROW(Δραστηριότητα))+1),ROWS($B$3:B67)))&CHAR(10),\"\")","v":""}]
[null,{"$f":"IFERROR(INDEX(Δραστηριότητα,SMALL(IF(Στόχος=$B$2,ROW(Δραστηριότητα)-MIN(ROW(Δραστηριότητα))+1),ROWS($B$3:B68)))&\" \"&CHAR(10)&(INDEX(Αποτέλεσμα,SMALL(IF(Στόχος=$B$2,ROW(Αποτέλεσμα)-MIN(ROW(Αποτέλεσμα))+1),ROWS($B$3:B68))))&CHAR(10),\"\")","v":""},null,{"$f":"IFERROR(INDEX(Δραστηριότητα,SMALL(IF(Στόχος=$D$2,ROW(Δραστηριότητα)-MIN(ROW(Δραστηριότητα))+1),ROWS($B$3:B68)))&CHAR(10),\"\")","v":""},null,{"$f":"IFERROR(INDEX(Δραστηριότητα,SMALL(IF(Στόχος=$F$2,ROW(Δραστηριότητα)-MIN(ROW(Δραστηριότητα))+1),ROWS($B$3:B68)))&CHAR(10),\"\")","v":""},null,{"$f":"IFERROR(INDEX(Δραστηριότητα,SMALL(IF(Στόχος=$H$2,ROW(Δραστηριότητα)-MIN(ROW(Δραστηριότητα))+1),ROWS($B$3:B68)))&CHAR(10),\"\")","v":""}]
[null,{"$f":"IFERROR(INDEX(Δραστηριότητα,SMALL(IF(Στόχος=$B$2,ROW(Δραστηριότητα)-MIN(ROW(Δραστηριότητα))+1),ROWS($B$3:B69)))&\" \"&CHAR(10)&(INDEX(Αποτέλεσμα,SMALL(IF(Στόχος=$B$2,ROW(Αποτέλεσμα)-MIN(ROW(Αποτέλεσμα))+1),ROWS($B$3:B69))))&CHAR(10),\"\")","v":""},null,{"$f":"IFERROR(INDEX(Δραστηριότητα,SMALL(IF(Στόχος=$D$2,ROW(Δραστηριότητα)-MIN(ROW(Δραστηριότητα))+1),ROWS($B$3:B69)))&CHAR(10),\"\")","v":""},null,{"$f":"IFERROR(INDEX(Δραστηριότητα,SMALL(IF(Στόχος=$F$2,ROW(Δραστηριότητα)-MIN(ROW(Δραστηριότητα))+1),ROWS($B$3:B69)))&CHAR(10),\"\")","v":""},null,{"$f":"IFERROR(INDEX(Δραστηριότητα,SMALL(IF(Στόχος=$H$2,ROW(Δραστηριότητα)-MIN(ROW(Δραστηριότητα))+1),ROWS($B$3:B69)))&CHAR(10),\"\")","v":""}]
[null,{"$f":"IFERROR(INDEX(Δραστηριότητα,SMALL(IF(Στόχος=$B$2,ROW(Δραστηριότητα)-MIN(ROW(Δραστηριότητα))+1),ROWS($B$3:B70)))&\" \"&CHAR(10)&(INDEX(Αποτέλεσμα,SMALL(IF(Στόχος=$B$2,ROW(Αποτέλεσμα)-MIN(ROW(Αποτέλεσμα))+1),ROWS($B$3:B70))))&CHAR(10),\"\")","v":""},null,{"$f":"IFERROR(INDEX(Δραστηριότητα,SMALL(IF(Στόχος=$D$2,ROW(Δραστηριότητα)-MIN(ROW(Δραστηριότητα))+1),ROWS($B$3:B70)))&CHAR(10),\"\")","v":""},null,{"$f":"IFERROR(INDEX(Δραστηριότητα,SMALL(IF(Στόχος=$F$2,ROW(Δραστηριότητα)-MIN(ROW(Δραστηριότητα))+1),ROWS($B$3:B70)))&CHAR(10),\"\")","v":""},null,{"$f":"IFERROR(INDEX(Δραστηριότητα,SMALL(IF(Στόχος=$H$2,ROW(Δραστηριότητα)-MIN(ROW(Δραστηριότητα))+1),ROWS($B$3:B70)))&CHAR(10),\"\")","v":""}]
[null,{"$f":"IFERROR(INDEX(Δραστηριότητα,SMALL(IF(Στόχος=$B$2,ROW(Δραστηριότητα)-MIN(ROW(Δραστηριότητα))+1),ROWS($B$3:B71)))&\" \"&CHAR(10)&(INDEX(Αποτέλεσμα,SMALL(IF(Στόχος=$B$2,ROW(Αποτέλεσμα)-MIN(ROW(Αποτέλεσμα))+1),ROWS($B$3:B71))))&CHAR(10),\"\")","v":""},null,{"$f":"IFERROR(INDEX(Δραστηριότητα,SMALL(IF(Στόχος=$D$2,ROW(Δραστηριότητα)-MIN(ROW(Δραστηριότητα))+1),ROWS($B$3:B71)))&CHAR(10),\"\")","v":""},null,{"$f":"IFERROR(INDEX(Δραστηριότητα,SMALL(IF(Στόχος=$F$2,ROW(Δραστηριότητα)-MIN(ROW(Δραστηριότητα))+1),ROWS($B$3:B71)))&CHAR(10),\"\")","v":""},null,{"$f":"IFERROR(INDEX(Δραστηριότητα,SMALL(IF(Στόχος=$H$2,ROW(Δραστηριότητα)-MIN(ROW(Δραστηριότητα))+1),ROWS($B$3:B71)))&CHAR(10),\"\")","v":""}]
[null,{"$f":"IFERROR(INDEX(Δραστηριότητα,SMALL(IF(Στόχος=$B$2,ROW(Δραστηριότητα)-MIN(ROW(Δραστηριότητα))+1),ROWS($B$3:B72)))&\" \"&CHAR(10)&(INDEX(Αποτέλεσμα,SMALL(IF(Στόχος=$B$2,ROW(Αποτέλεσμα)-MIN(ROW(Αποτέλεσμα))+1),ROWS($B$3:B72))))&CHAR(10),\"\")","v":""},null,{"$f":"IFERROR(INDEX(Δραστηριότητα,SMALL(IF(Στόχος=$D$2,ROW(Δραστηριότητα)-MIN(ROW(Δραστηριότητα))+1),ROWS($B$3:B72)))&CHAR(10),\"\")","v":""},null,{"$f":"IFERROR(INDEX(Δραστηριότητα,SMALL(IF(Στόχος=$F$2,ROW(Δραστηριότητα)-MIN(ROW(Δραστηριότητα))+1),ROWS($B$3:B72)))&CHAR(10),\"\")","v":""},null,{"$f":"IFERROR(INDEX(Δραστηριότητα,SMALL(IF(Στόχος=$H$2,ROW(Δραστηριότητα)-MIN(ROW(Δραστηριότητα))+1),ROWS($B$3:B72)))&CHAR(10),\"\")","v":""}]
[null,{"$f":"IFERROR(INDEX(Δραστηριότητα,SMALL(IF(Στόχος=$B$2,ROW(Δραστηριότητα)-MIN(ROW(Δραστηριότητα))+1),ROWS($B$3:B73)))&\" \"&CHAR(10)&(INDEX(Αποτέλεσμα,SMALL(IF(Στόχος=$B$2,ROW(Αποτέλεσμα)-MIN(ROW(Αποτέλεσμα))+1),ROWS($B$3:B73))))&CHAR(10),\"\")","v":""},null,{"$f":"IFERROR(INDEX(Δραστηριότητα,SMALL(IF(Στόχος=$D$2,ROW(Δραστηριότητα)-MIN(ROW(Δραστηριότητα))+1),ROWS($B$3:B73)))&CHAR(10),\"\")","v":""},null,{"$f":"IFERROR(INDEX(Δραστηριότητα,SMALL(IF(Στόχος=$F$2,ROW(Δραστηριότητα)-MIN(ROW(Δραστηριότητα))+1),ROWS($B$3:B73)))&CHAR(10),\"\")","v":""},null,{"$f":"IFERROR(INDEX(Δραστηριότητα,SMALL(IF(Στόχος=$H$2,ROW(Δραστηριότητα)-MIN(ROW(Δραστηριότητα))+1),ROWS($B$3:B73)))&CHAR(10),\"\")","v":""}]
[null,{"$f":"IFERROR(INDEX(Δραστηριότητα,SMALL(IF(Στόχος=$B$2,ROW(Δραστηριότητα)-MIN(ROW(Δραστηριότητα))+1),ROWS($B$3:B74)))&\" \"&CHAR(10)&(INDEX(Αποτέλεσμα,SMALL(IF(Στόχος=$B$2,ROW(Αποτέλεσμα)-MIN(ROW(Αποτέλεσμα))+1),ROWS($B$3:B74))))&CHAR(10),\"\")","v":""},null,{"$f":"IFERROR(INDEX(Δραστηριότητα,SMALL(IF(Στόχος=$D$2,ROW(Δραστηριότητα)-MIN(ROW(Δραστηριότητα))+1),ROWS($B$3:B74)))&CHAR(10),\"\")","v":""},null,{"$f":"IFERROR(INDEX(Δραστηριότητα,SMALL(IF(Στόχος=$F$2,ROW(Δραστηριότητα)-MIN(ROW(Δραστηριότητα))+1),ROWS($B$3:B74)))&CHAR(10),\"\")","v":""},null,{"$f":"IFERROR(INDEX(Δραστηριότητα,SMALL(IF(Στόχος=$H$2,ROW(Δραστηριότητα)-MIN(ROW(Δραστηριότητα))+1),ROWS($B$3:B74)))&CHAR(10),\"\")","v":""}]
[null,{"$f":"IFERROR(INDEX(Δραστηριότητα,SMALL(IF(Στόχος=$B$2,ROW(Δραστηριότητα)-MIN(ROW(Δραστηριότητα))+1),ROWS($B$3:B75)))&\" \"&CHAR(10)&(INDEX(Αποτέλεσμα,SMALL(IF(Στόχος=$B$2,ROW(Αποτέλεσμα)-MIN(ROW(Αποτέλεσμα))+1),ROWS($B$3:B75))))&CHAR(10),\"\")","v":""},null,{"$f":"IFERROR(INDEX(Δραστηριότητα,SMALL(IF(Στόχος=$D$2,ROW(Δραστηριότητα)-MIN(ROW(Δραστηριότητα))+1),ROWS($B$3:B75)))&CHAR(10),\"\")","v":""},null,{"$f":"IFERROR(INDEX(Δραστηριότητα,SMALL(IF(Στόχος=$F$2,ROW(Δραστηριότητα)-MIN(ROW(Δραστηριότητα))+1),ROWS($B$3:B75)))&CHAR(10),\"\")","v":""},null,{"$f":"IFERROR(INDEX(Δραστηριότητα,SMALL(IF(Στόχος=$H$2,ROW(Δραστηριότητα)-MIN(ROW(Δραστηριότητα))+1),ROWS($B$3:B75)))&CHAR(10),\"\")","v":""}]
[null,{"$f":"IFERROR(INDEX(Δραστηριότητα,SMALL(IF(Στόχος=$B$2,ROW(Δραστηριότητα)-MIN(ROW(Δραστηριότητα))+1),ROWS($B$3:B76)))&\" \"&CHAR(10)&(INDEX(Αποτέλεσμα,SMALL(IF(Στόχος=$B$2,ROW(Αποτέλεσμα)-MIN(ROW(Αποτέλεσμα))+1),ROWS($B$3:B76))))&CHAR(10),\"\")","v":""},null,{"$f":"IFERROR(INDEX(Δραστηριότητα,SMALL(IF(Στόχος=$D$2,ROW(Δραστηριότητα)-MIN(ROW(Δραστηριότητα))+1),ROWS($B$3:B76)))&CHAR(10),\"\")","v":""},null,{"$f":"IFERROR(INDEX(Δραστηριότητα,SMALL(IF(Στόχος=$F$2,ROW(Δραστηριότητα)-MIN(ROW(Δραστηριότητα))+1),ROWS($B$3:B76)))&CHAR(10),\"\")","v":""},null,{"$f":"IFERROR(INDEX(Δραστηριότητα,SMALL(IF(Στόχος=$H$2,ROW(Δραστηριότητα)-MIN(ROW(Δραστηριότητα))+1),ROWS($B$3:B76)))&CHAR(10),\"\")","v":""}]
[null,{"$f":"IFERROR(INDEX(Δραστηριότητα,SMALL(IF(Στόχος=$B$2,ROW(Δραστηριότητα)-MIN(ROW(Δραστηριότητα))+1),ROWS($B$3:B77)))&\" \"&CHAR(10)&(INDEX(Αποτέλεσμα,SMALL(IF(Στόχος=$B$2,ROW(Αποτέλεσμα)-MIN(ROW(Αποτέλεσμα))+1),ROWS($B$3:B77))))&CHAR(10),\"\")","v":""},null,{"$f":"IFERROR(INDEX(Δραστηριότητα,SMALL(IF(Στόχος=$D$2,ROW(Δραστηριότητα)-MIN(ROW(Δραστηριότητα))+1),ROWS($B$3:B77)))&CHAR(10),\"\")","v":""},null,{"$f":"IFERROR(INDEX(Δραστηριότητα,SMALL(IF(Στόχος=$F$2,ROW(Δραστηριότητα)-MIN(ROW(Δραστηριότητα))+1),ROWS($B$3:B77)))&CHAR(10),\"\")","v":""},null,{"$f":"IFERROR(INDEX(Δραστηριότητα,SMALL(IF(Στόχος=$H$2,ROW(Δραστηριότητα)-MIN(ROW(Δραστηριότητα))+1),ROWS($B$3:B77)))&CHAR(10),\"\")","v":""}]
[null,{"$f":"IFERROR(INDEX(Δραστηριότητα,SMALL(IF(Στόχος=$B$2,ROW(Δραστηριότητα)-MIN(ROW(Δραστηριότητα))+1),ROWS($B$3:B78)))&\" \"&CHAR(10)&(INDEX(Αποτέλεσμα,SMALL(IF(Στόχος=$B$2,ROW(Αποτέλεσμα)-MIN(ROW(Αποτέλεσμα))+1),ROWS($B$3:B78))))&CHAR(10),\"\")","v":""},null,{"$f":"IFERROR(INDEX(Δραστηριότητα,SMALL(IF(Στόχος=$D$2,ROW(Δραστηριότητα)-MIN(ROW(Δραστηριότητα))+1),ROWS($B$3:B78)))&CHAR(10),\"\")","v":""},null,{"$f":"IFERROR(INDEX(Δραστηριότητα,SMALL(IF(Στόχος=$F$2,ROW(Δραστηριότητα)-MIN(ROW(Δραστηριότητα))+1),ROWS($B$3:B78)))&CHAR(10),\"\")","v":""},null,{"$f":"IFERROR(INDEX(Δραστηριότητα,SMALL(IF(Στόχος=$H$2,ROW(Δραστηριότητα)-MIN(ROW(Δραστηριότητα))+1),ROWS($B$3:B78)))&CHAR(10),\"\")","v":""}]
[null,{"$f":"IFERROR(INDEX(Δραστηριότητα,SMALL(IF(Στόχος=$B$2,ROW(Δραστηριότητα)-MIN(ROW(Δραστηριότητα))+1),ROWS($B$3:B79)))&\" \"&CHAR(10)&(INDEX(Αποτέλεσμα,SMALL(IF(Στόχος=$B$2,ROW(Αποτέλεσμα)-MIN(ROW(Αποτέλεσμα))+1),ROWS($B$3:B79))))&CHAR(10),\"\")","v":""},null,{"$f":"IFERROR(INDEX(Δραστηριότητα,SMALL(IF(Στόχος=$D$2,ROW(Δραστηριότητα)-MIN(ROW(Δραστηριότητα))+1),ROWS($B$3:B79)))&CHAR(10),\"\")","v":""},null,{"$f":"IFERROR(INDEX(Δραστηριότητα,SMALL(IF(Στόχος=$F$2,ROW(Δραστηριότητα)-MIN(ROW(Δραστηριότητα))+1),ROWS($B$3:B79)))&CHAR(10),\"\")","v":""},null,{"$f":"IFERROR(INDEX(Δραστηριότητα,SMALL(IF(Στόχος=$H$2,ROW(Δραστηριότητα)-MIN(ROW(Δραστηριότητα))+1),ROWS($B$3:B79)))&CHAR(10),\"\")","v":""}]
[null,{"$f":"IFERROR(INDEX(Δραστηριότητα,SMALL(IF(Στόχος=$B$2,ROW(Δραστηριότητα)-MIN(ROW(Δραστηριότητα))+1),ROWS($B$3:B80)))&\" \"&CHAR(10)&(INDEX(Αποτέλεσμα,SMALL(IF(Στόχος=$B$2,ROW(Αποτέλεσμα)-MIN(ROW(Αποτέλεσμα))+1),ROWS($B$3:B80))))&CHAR(10),\"\")","v":""},null,{"$f":"IFERROR(INDEX(Δραστηριότητα,SMALL(IF(Στόχος=$D$2,ROW(Δραστηριότητα)-MIN(ROW(Δραστηριότητα))+1),ROWS($B$3:B80)))&CHAR(10),\"\")","v":""},null,{"$f":"IFERROR(INDEX(Δραστηριότητα,SMALL(IF(Στόχος=$F$2,ROW(Δραστηριότητα)-MIN(ROW(Δραστηριότητα))+1),ROWS($B$3:B80)))&CHAR(10),\"\")","v":""},null,{"$f":"IFERROR(INDEX(Δραστηριότητα,SMALL(IF(Στόχος=$H$2,ROW(Δραστηριότητα)-MIN(ROW(Δραστηριότητα))+1),ROWS($B$3:B80)))&CHAR(10),\"\")","v":""}]
[null,{"$f":"IFERROR(INDEX(Δραστηριότητα,SMALL(IF(Στόχος=$B$2,ROW(Δραστηριότητα)-MIN(ROW(Δραστηριότητα))+1),ROWS($B$3:B81)))&\" \"&CHAR(10)&(INDEX(Αποτέλεσμα,SMALL(IF(Στόχος=$B$2,ROW(Αποτέλεσμα)-MIN(ROW(Αποτέλεσμα))+1),ROWS($B$3:B81))))&CHAR(10),\"\")","v":""},null,{"$f":"IFERROR(INDEX(Δραστηριότητα,SMALL(IF(Στόχος=$D$2,ROW(Δραστηριότητα)-MIN(ROW(Δραστηριότητα))+1),ROWS($B$3:B81)))&CHAR(10),\"\")","v":""},null,{"$f":"IFERROR(INDEX(Δραστηριότητα,SMALL(IF(Στόχος=$F$2,ROW(Δραστηριότητα)-MIN(ROW(Δραστηριότητα))+1),ROWS($B$3:B81)))&CHAR(10),\"\")","v":""},null,{"$f":"IFERROR(INDEX(Δραστηριότητα,SMALL(IF(Στόχος=$H$2,ROW(Δραστηριότητα)-MIN(ROW(Δραστηριότητα))+1),ROWS($B$3:B81)))&CHAR(10),\"\")","v":""}]
[null,{"$f":"IFERROR(INDEX(Δραστηριότητα,SMALL(IF(Στόχος=$B$2,ROW(Δραστηριότητα)-MIN(ROW(Δραστηριότητα))+1),ROWS($B$3:B82)))&\" \"&CHAR(10)&(INDEX(Αποτέλεσμα,SMALL(IF(Στόχος=$B$2,ROW(Αποτέλεσμα)-MIN(ROW(Αποτέλεσμα))+1),ROWS($B$3:B82))))&CHAR(10),\"\")","v":""},null,{"$f":"IFERROR(INDEX(Δραστηριότητα,SMALL(IF(Στόχος=$D$2,ROW(Δραστηριότητα)-MIN(ROW(Δραστηριότητα))+1),ROWS($B$3:B82)))&CHAR(10),\"\")","v":""},null,{"$f":"IFERROR(INDEX(Δραστηριότητα,SMALL(IF(Στόχος=$F$2,ROW(Δραστηριότητα)-MIN(ROW(Δραστηριότητα))+1),ROWS($B$3:B82)))&CHAR(10),\"\")","v":""},null,{"$f":"IFERROR(INDEX(Δραστηριότητα,SMALL(IF(Στόχος=$H$2,ROW(Δραστηριότητα)-MIN(ROW(Δραστηριότητα))+1),ROWS($B$3:B82)))&CHAR(10),\"\")","v":""}]
[null,{"$f":"IFERROR(INDEX(Δραστηριότητα,SMALL(IF(Στόχος=$B$2,ROW(Δραστηριότητα)-MIN(ROW(Δραστηριότητα))+1),ROWS($B$3:B83)))&\" \"&CHAR(10)&(INDEX(Αποτέλεσμα,SMALL(IF(Στόχος=$B$2,ROW(Αποτέλεσμα)-MIN(ROW(Αποτέλεσμα))+1),ROWS($B$3:B83))))&CHAR(10),\"\")","v":""},null,{"$f":"IFERROR(INDEX(Δραστηριότητα,SMALL(IF(Στόχος=$D$2,ROW(Δραστηριότητα)-MIN(ROW(Δραστηριότητα))+1),ROWS($B$3:B83)))&CHAR(10),\"\")","v":""},null,{"$f":"IFERROR(INDEX(Δραστηριότητα,SMALL(IF(Στόχος=$F$2,ROW(Δραστηριότητα)-MIN(ROW(Δραστηριότητα))+1),ROWS($B$3:B83)))&CHAR(10),\"\")","v":""},null,{"$f":"IFERROR(INDEX(Δραστηριότητα,SMALL(IF(Στόχος=$H$2,ROW(Δραστηριότητα)-MIN(ROW(Δραστηριότητα))+1),ROWS($B$3:B83)))&CHAR(10),\"\")","v":""}]
[null,{"$f":"IFERROR(INDEX(Δραστηριότητα,SMALL(IF(Στόχος=$B$2,ROW(Δραστηριότητα)-MIN(ROW(Δραστηριότητα))+1),ROWS($B$3:B84)))&\" \"&CHAR(10)&(INDEX(Αποτέλεσμα,SMALL(IF(Στόχος=$B$2,ROW(Αποτέλεσμα)-MIN(ROW(Αποτέλεσμα))+1),ROWS($B$3:B84))))&CHAR(10),\"\")","v":""},null,{"$f":"IFERROR(INDEX(Δραστηριότητα,SMALL(IF(Στόχος=$D$2,ROW(Δραστηριότητα)-MIN(ROW(Δραστηριότητα))+1),ROWS($B$3:B84)))&CHAR(10),\"\")","v":""},null,{"$f":"IFERROR(INDEX(Δραστηριότητα,SMALL(IF(Στόχος=$F$2,ROW(Δραστηριότητα)-MIN(ROW(Δραστηριότητα))+1),ROWS($B$3:B84)))&CHAR(10),\"\")","v":""},null,{"$f":"IFERROR(INDEX(Δραστηριότητα,SMALL(IF(Στόχος=$H$2,ROW(Δραστηριότητα)-MIN(ROW(Δραστηριότητα))+1),ROWS($B$3:B84)))&CHAR(10),\"\")","v":""}]
[null,{"$f":"IFERROR(INDEX(Δραστηριότητα,SMALL(IF(Στόχος=$B$2,ROW(Δραστηριότητα)-MIN(ROW(Δραστηριότητα))+1),ROWS($B$3:B85)))&\" \"&CHAR(10)&(INDEX(Αποτέλεσμα,SMALL(IF(Στόχος=$B$2,ROW(Αποτέλεσμα)-MIN(ROW(Αποτέλεσμα))+1),ROWS($B$3:B85))))&CHAR(10),\"\")","v":""},null,{"$f":"IFERROR(INDEX(Δραστηριότητα,SMALL(IF(Στόχος=$D$2,ROW(Δραστηριότητα)-MIN(ROW(Δραστηριότητα))+1),ROWS($B$3:B85)))&CHAR(10),\"\")","v":""},null,{"$f":"IFERROR(INDEX(Δραστηριότητα,SMALL(IF(Στόχος=$F$2,ROW(Δραστηριότητα)-MIN(ROW(Δραστηριότητα))+1),ROWS($B$3:B85)))&CHAR(10),\"\")","v":""},null,{"$f":"IFERROR(INDEX(Δραστηριότητα,SMALL(IF(Στόχος=$H$2,ROW(Δραστηριότητα)-MIN(ROW(Δραστηριότητα))+1),ROWS($B$3:B85)))&CHAR(10),\"\")","v":""}]
[null,{"$f":"IFERROR(INDEX(Δραστηριότητα,SMALL(IF(Στόχος=$B$2,ROW(Δραστηριότητα)-MIN(ROW(Δραστηριότητα))+1),ROWS($B$3:B86)))&\" \"&CHAR(10)&(INDEX(Αποτέλεσμα,SMALL(IF(Στόχος=$B$2,ROW(Αποτέλεσμα)-MIN(ROW(Αποτέλεσμα))+1),ROWS($B$3:B86))))&CHAR(10),\"\")","v":""},null,{"$f":"IFERROR(INDEX(Δραστηριότητα,SMALL(IF(Στόχος=$D$2,ROW(Δραστηριότητα)-MIN(ROW(Δραστηριότητα))+1),ROWS($B$3:B86)))&CHAR(10),\"\")","v":""},null,{"$f":"IFERROR(INDEX(Δραστηριότητα,SMALL(IF(Στόχος=$F$2,ROW(Δραστηριότητα)-MIN(ROW(Δραστηριότητα))+1),ROWS($B$3:B86)))&CHAR(10),\"\")","v":""},null,{"$f":"IFERROR(INDEX(Δραστηριότητα,SMALL(IF(Στόχος=$H$2,ROW(Δραστηριότητα)-MIN(ROW(Δραστηριότητα))+1),ROWS($B$3:B86)))&CHAR(10),\"\")","v":""}]
[null,{"$f":"IFERROR(INDEX(Δραστηριότητα,SMALL(IF(Στόχος=$B$2,ROW(Δραστηριότητα)-MIN(ROW(Δραστηριότητα))+1),ROWS($B$3:B87)))&\" \"&CHAR(10)&(INDEX(Αποτέλεσμα,SMALL(IF(Στόχος=$B$2,ROW(Αποτέλεσμα)-MIN(ROW(Αποτέλεσμα))+1),ROWS($B$3:B87))))&CHAR(10),\"\")","v":""},null,{"$f":"IFERROR(INDEX(Δραστηριότητα,SMALL(IF(Στόχος=$D$2,ROW(Δραστηριότητα)-MIN(ROW(Δραστηριότητα))+1),ROWS($B$3:B87)))&CHAR(10),\"\")","v":""},null,{"$f":"IFERROR(INDEX(Δραστηριότητα,SMALL(IF(Στόχος=$F$2,ROW(Δραστηριότητα)-MIN(ROW(Δραστηριότητα))+1),ROWS($B$3:B87)))&CHAR(10),\"\")","v":""},null,{"$f":"IFERROR(INDEX(Δραστηριότητα,SMALL(IF(Στόχος=$H$2,ROW(Δραστηριότητα)-MIN(ROW(Δραστηριότητα))+1),ROWS($B$3:B87)))&CHAR(10),\"\")","v":""}]
[null,{"$f":"IFERROR(INDEX(Δραστηριότητα,SMALL(IF(Στόχος=$B$2,ROW(Δραστηριότητα)-MIN(ROW(Δραστηριότητα))+1),ROWS($B$3:B88)))&\" \"&CHAR(10)&(INDEX(Αποτέλεσμα,SMALL(IF(Στόχος=$B$2,ROW(Αποτέλεσμα)-MIN(ROW(Αποτέλεσμα))+1),ROWS($B$3:B88))))&CHAR(10),\"\")","v":""},null,{"$f":"IFERROR(INDEX(Δραστηριότητα,SMALL(IF(Στόχος=$D$2,ROW(Δραστηριότητα)-MIN(ROW(Δραστηριότητα))+1),ROWS($B$3:B88)))&CHAR(10),\"\")","v":""},null,{"$f":"IFERROR(INDEX(Δραστηριότητα,SMALL(IF(Στόχος=$F$2,ROW(Δραστηριότητα)-MIN(ROW(Δραστηριότητα))+1),ROWS($B$3:B88)))&CHAR(10),\"\")","v":""},null,{"$f":"IFERROR(INDEX(Δραστηριότητα,SMALL(IF(Στόχος=$H$2,ROW(Δραστηριότητα)-MIN(ROW(Δραστηριότητα))+1),ROWS($B$3:B88)))&CHAR(10),\"\")","v":""}]
[null,{"$f":"IFERROR(INDEX(Δραστηριότητα,SMALL(IF(Στόχος=$B$2,ROW(Δραστηριότητα)-MIN(ROW(Δραστηριότητα))+1),ROWS($B$3:B89)))&\" \"&CHAR(10)&(INDEX(Αποτέλεσμα,SMALL(IF(Στόχος=$B$2,ROW(Αποτέλεσμα)-MIN(ROW(Αποτέλεσμα))+1),ROWS($B$3:B89))))&CHAR(10),\"\")","v":""},null,{"$f":"IFERROR(INDEX(Δραστηριότητα,SMALL(IF(Στόχος=$D$2,ROW(Δραστηριότητα)-MIN(ROW(Δραστηριότητα))+1),ROWS($B$3:B89)))&CHAR(10),\"\")","v":""},null,{"$f":"IFERROR(INDEX(Δραστηριότητα,SMALL(IF(Στόχος=$F$2,ROW(Δραστηριότητα)-MIN(ROW(Δραστηριότητα))+1),ROWS($B$3:B89)))&CHAR(10),\"\")","v":""},null,{"$f":"IFERROR(INDEX(Δραστηριότητα,SMALL(IF(Στόχος=$H$2,ROW(Δραστηριότητα)-MIN(ROW(Δραστηριότητα))+1),ROWS($B$3:B89)))&CHAR(10),\"\")","v":""}]
[null,{"$f":"IFERROR(INDEX(Δραστηριότητα,SMALL(IF(Στόχος=$B$2,ROW(Δραστηριότητα)-MIN(ROW(Δραστηριότητα))+1),ROWS($B$3:B90)))&\" \"&CHAR(10)&(INDEX(Αποτέλεσμα,SMALL(IF(Στόχος=$B$2,ROW(Αποτέλεσμα)-MIN(ROW(Αποτέλεσμα))+1),ROWS($B$3:B90))))&CHAR(10),\"\")","v":""},null,{"$f":"IFERROR(INDEX(Δραστηριότητα,SMALL(IF(Στόχος=$D$2,ROW(Δραστηριότητα)-MIN(ROW(Δραστηριότητα))+1),ROWS($B$3:B90)))&CHAR(10),\"\")","v":""},null,{"$f":"IFERROR(INDEX(Δραστηριότητα,SMALL(IF(Στόχος=$F$2,ROW(Δραστηριότητα)-MIN(ROW(Δραστηριότητα))+1),ROWS($B$3:B90)))&CHAR(10),\"\")","v":""},null,{"$f":"IFERROR(INDEX(Δραστηριότητα,SMALL(IF(Στόχος=$H$2,ROW(Δραστηριότητα)-MIN(ROW(Δραστηριότητα))+1),ROWS($B$3:B90)))&CHAR(10),\"\")","v":""}]
[null,{"$f":"IFERROR(INDEX(Δραστηριότητα,SMALL(IF(Στόχος=$B$2,ROW(Δραστηριότητα)-MIN(ROW(Δραστηριότητα))+1),ROWS($B$3:B91)))&\" \"&CHAR(10)&(INDEX(Αποτέλεσμα,SMALL(IF(Στόχος=$B$2,ROW(Αποτέλεσμα)-MIN(ROW(Αποτέλεσμα))+1),ROWS($B$3:B91))))&CHAR(10),\"\")","v":""},null,{"$f":"IFERROR(INDEX(Δραστηριότητα,SMALL(IF(Στόχος=$D$2,ROW(Δραστηριότητα)-MIN(ROW(Δραστηριότητα))+1),ROWS($B$3:B91)))&CHAR(10),\"\")","v":""},null,{"$f":"IFERROR(INDEX(Δραστηριότητα,SMALL(IF(Στόχος=$F$2,ROW(Δραστηριότητα)-MIN(ROW(Δραστηριότητα))+1),ROWS($B$3:B91)))&CHAR(10),\"\")","v":""},null,{"$f":"IFERROR(INDEX(Δραστηριότητα,SMALL(IF(Στόχος=$H$2,ROW(Δραστηριότητα)-MIN(ROW(Δραστηριότητα))+1),ROWS($B$3:B91)))&CHAR(10),\"\")","v":""}]
[null,{"$f":"IFERROR(INDEX(Δραστηριότητα,SMALL(IF(Στόχος=$B$2,ROW(Δραστηριότητα)-MIN(ROW(Δραστηριότητα))+1),ROWS($B$3:B92)))&\" \"&CHAR(10)&(INDEX(Αποτέλεσμα,SMALL(IF(Στόχος=$B$2,ROW(Αποτέλεσμα)-MIN(ROW(Αποτέλεσμα))+1),ROWS($B$3:B92))))&CHAR(10),\"\")","v":""},null,{"$f":"IFERROR(INDEX(Δραστηριότητα,SMALL(IF(Στόχος=$D$2,ROW(Δραστηριότητα)-MIN(ROW(Δραστηριότητα))+1),ROWS($B$3:B92)))&CHAR(10),\"\")","v":""},null,{"$f":"IFERROR(INDEX(Δραστηριότητα,SMALL(IF(Στόχος=$F$2,ROW(Δραστηριότητα)-MIN(ROW(Δραστηριότητα))+1),ROWS($B$3:B92)))&CHAR(10),\"\")","v":""},null,{"$f":"IFERROR(INDEX(Δραστηριότητα,SMALL(IF(Στόχος=$H$2,ROW(Δραστηριότητα)-MIN(ROW(Δραστηριότητα))+1),ROWS($B$3:B92)))&CHAR(10),\"\")","v":""}]
[null,{"$f":"IFERROR(INDEX(Δραστηριότητα,SMALL(IF(Στόχος=$B$2,ROW(Δραστηριότητα)-MIN(ROW(Δραστηριότητα))+1),ROWS($B$3:B93)))&\" \"&CHAR(10)&(INDEX(Αποτέλεσμα,SMALL(IF(Στόχος=$B$2,ROW(Αποτέλεσμα)-MIN(ROW(Αποτέλεσμα))+1),ROWS($B$3:B93))))&CHAR(10),\"\")","v":""},null,{"$f":"IFERROR(INDEX(Δραστηριότητα,SMALL(IF(Στόχος=$D$2,ROW(Δραστηριότητα)-MIN(ROW(Δραστηριότητα))+1),ROWS($B$3:B93)))&CHAR(10),\"\")","v":""},null,{"$f":"IFERROR(INDEX(Δραστηριότητα,SMALL(IF(Στόχος=$F$2,ROW(Δραστηριότητα)-MIN(ROW(Δραστηριότητα))+1),ROWS($B$3:B93)))&CHAR(10),\"\")","v":""},null,{"$f":"IFERROR(INDEX(Δραστηριότητα,SMALL(IF(Στόχος=$H$2,ROW(Δραστηριότητα)-MIN(ROW(Δραστηριότητα))+1),ROWS($B$3:B93)))&CHAR(10),\"\")","v":""}]
[null,{"$f":"IFERROR(INDEX(Δραστηριότητα,SMALL(IF(Στόχος=$B$2,ROW(Δραστηριότητα)-MIN(ROW(Δραστηριότητα))+1),ROWS($B$3:B94)))&\" \"&CHAR(10)&(INDEX(Αποτέλεσμα,SMALL(IF(Στόχος=$B$2,ROW(Αποτέλεσμα)-MIN(ROW(Αποτέλεσμα))+1),ROWS($B$3:B94))))&CHAR(10),\"\")","v":""},null,{"$f":"IFERROR(INDEX(Δραστηριότητα,SMALL(IF(Στόχος=$D$2,ROW(Δραστηριότητα)-MIN(ROW(Δραστηριότητα))+1),ROWS($B$3:B94)))&CHAR(10),\"\")","v":""},null,{"$f":"IFERROR(INDEX(Δραστηριότητα,SMALL(IF(Στόχος=$F$2,ROW(Δραστηριότητα)-MIN(ROW(Δραστηριότητα))+1),ROWS($B$3:B94)))&CHAR(10),\"\")","v":""},null,{"$f":"IFERROR(INDEX(Δραστηριότητα,SMALL(IF(Στόχος=$H$2,ROW(Δραστηριότητα)-MIN(ROW(Δραστηριότητα))+1),ROWS($B$3:B94)))&CHAR(10),\"\")","v":""}]
[null,{"$f":"IFERROR(INDEX(Δραστηριότητα,SMALL(IF(Στόχος=$B$2,ROW(Δραστηριότητα)-MIN(ROW(Δραστηριότητα))+1),ROWS($B$3:B95)))&\" \"&CHAR(10)&(INDEX(Αποτέλεσμα,SMALL(IF(Στόχος=$B$2,ROW(Αποτέλεσμα)-MIN(ROW(Αποτέλεσμα))+1),ROWS($B$3:B95))))&CHAR(10),\"\")","v":""},null,{"$f":"IFERROR(INDEX(Δραστηριότητα,SMALL(IF(Στόχος=$D$2,ROW(Δραστηριότητα)-MIN(ROW(Δραστηριότητα))+1),ROWS($B$3:B95)))&CHAR(10),\"\")","v":""},null,{"$f":"IFERROR(INDEX(Δραστηριότητα,SMALL(IF(Στόχος=$F$2,ROW(Δραστηριότητα)-MIN(ROW(Δραστηριότητα))+1),ROWS($B$3:B95)))&CHAR(10),\"\")","v":""},null,{"$f":"IFERROR(INDEX(Δραστηριότητα,SMALL(IF(Στόχος=$H$2,ROW(Δραστηριότητα)-MIN(ROW(Δραστηριότητα))+1),ROWS($B$3:B95)))&CHAR(10),\"\")","v":""}]
[null,{"$f":"IFERROR(INDEX(Δραστηριότητα,SMALL(IF(Στόχος=$B$2,ROW(Δραστηριότητα)-MIN(ROW(Δραστηριότητα))+1),ROWS($B$3:B96)))&\" \"&CHAR(10)&(INDEX(Αποτέλεσμα,SMALL(IF(Στόχος=$B$2,ROW(Αποτέλεσμα)-MIN(ROW(Αποτέλεσμα))+1),ROWS($B$3:B96))))&CHAR(10),\"\")","v":""},null,{"$f":"IFERROR(INDEX(Δραστηριότητα,SMALL(IF(Στόχος=$D$2,ROW(Δραστηριότητα)-MIN(ROW(Δραστηριότητα))+1),ROWS($B$3:B96)))&CHAR(10),\"\")","v":""},null,{"$f":"IFERROR(INDEX(Δραστηριότητα,SMALL(IF(Στόχος=$F$2,ROW(Δραστηριότητα)-MIN(ROW(Δραστηριότητα))+1),ROWS($B$3:B96)))&CHAR(10),\"\")","v":""},null,{"$f":"IFERROR(INDEX(Δραστηριότητα,SMALL(IF(Στόχος=$H$2,ROW(Δραστηριότητα)-MIN(ROW(Δραστηριότητα))+1),ROWS($B$3:B96)))&CHAR(10),\"\")","v":""}]
[null,{"$f":"IFERROR(INDEX(Δραστηριότητα,SMALL(IF(Στόχος=$B$2,ROW(Δραστηριότητα)-MIN(ROW(Δραστηριότητα))+1),ROWS($B$3:B97)))&\" \"&CHAR(10)&(INDEX(Αποτέλεσμα,SMALL(IF(Στόχος=$B$2,ROW(Αποτέλεσμα)-MIN(ROW(Αποτέλεσμα))+1),ROWS($B$3:B97))))&CHAR(10),\"\")","v":""},null,{"$f":"IFERROR(INDEX(Δραστηριότητα,SMALL(IF(Στόχος=$D$2,ROW(Δραστηριότητα)-MIN(ROW(Δραστηριότητα))+1),ROWS($B$3:B97)))&CHAR(10),\"\")","v":""},null,{"$f":"IFERROR(INDEX(Δραστηριότητα,SMALL(IF(Στόχος=$F$2,ROW(Δραστηριότητα)-MIN(ROW(Δραστηριότητα))+1),ROWS($B$3:B97)))&CHAR(10),\"\")","v":""},null,{"$f":"IFERROR(INDEX(Δραστηριότητα,SMALL(IF(Στόχος=$H$2,ROW(Δραστηριότητα)-MIN(ROW(Δραστηριότητα))+1),ROWS($B$3:B97)))&CHAR(10),\"\")","v":""}]
[null,{"$f":"IFERROR(INDEX(Δραστηριότητα,SMALL(IF(Στόχος=$B$2,ROW(Δραστηριότητα)-MIN(ROW(Δραστηριότητα))+1),ROWS($B$3:B98)))&\" \"&CHAR(10)&(INDEX(Αποτέλεσμα,SMALL(IF(Στόχος=$B$2,ROW(Αποτέλεσμα)-MIN(ROW(Αποτέλεσμα))+1),ROWS($B$3:B98))))&CHAR(10),\"\")","v":""},null,{"$f":"IFERROR(INDEX(Δραστηριότητα,SMALL(IF(Στόχος=$D$2,ROW(Δραστηριότητα)-MIN(ROW(Δραστηριότητα))+1),ROWS($B$3:B98)))&CHAR(10),\"\")","v":""},null,{"$f":"IFERROR(INDEX(Δραστηριότητα,SMALL(IF(Στόχος=$F$2,ROW(Δραστηριότητα)-MIN(ROW(Δραστηριότητα))+1),ROWS($B$3:B98)))&CHAR(10),\"\")","v":""},null,{"$f":"IFERROR(INDEX(Δραστηριότητα,SMALL(IF(Στόχος=$H$2,ROW(Δραστηριότητα)-MIN(ROW(Δραστηριότητα))+1),ROWS($B$3:B98)))&CHAR(10),\"\")","v":""}]
[null,{"$f":"IFERROR(INDEX(Δραστηριότητα,SMALL(IF(Στόχος=$B$2,ROW(Δραστηριότητα)-MIN(ROW(Δραστηριότητα))+1),ROWS($B$3:B99)))&\" \"&CHAR(10)&(INDEX(Αποτέλεσμα,SMALL(IF(Στόχος=$B$2,ROW(Αποτέλεσμα)-MIN(ROW(Αποτέλεσμα))+1),ROWS($B$3:B99))))&CHAR(10),\"\")","v":""},null,{"$f":"IFERROR(INDEX(Δραστηριότητα,SMALL(IF(Στόχος=$D$2,ROW(Δραστηριότητα)-MIN(ROW(Δραστηριότητα))+1),ROWS($B$3:B99)))&CHAR(10),\"\")","v":""},null,{"$f":"IFERROR(INDEX(Δραστηριότητα,SMALL(IF(Στόχος=$F$2,ROW(Δραστηριότητα)-MIN(ROW(Δραστηριότητα))+1),ROWS($B$3:B99)))&CHAR(10),\"\")","v":""},null,{"$f":"IFERROR(INDEX(Δραστηριότητα,SMALL(IF(Στόχος=$H$2,ROW(Δραστηριότητα)-MIN(ROW(Δραστηριότητα))+1),ROWS($B$3:B99)))&CHAR(10),\"\")","v":""}]
[null,{"$f":"IFERROR(INDEX(Δραστηριότητα,SMALL(IF(Στόχος=$B$2,ROW(Δραστηριότητα)-MIN(ROW(Δραστηριότητα))+1),ROWS($B$3:B100)))&\" \"&CHAR(10)&(INDEX(Αποτέλεσμα,SMALL(IF(Στόχος=$B$2,ROW(Αποτέλεσμα)-MIN(ROW(Αποτέλεσμα))+1),ROWS($B$3:B100))))&CHAR(10),\"\")","v":""},null,{"$f":"IFERROR(INDEX(Δραστηριότητα,SMALL(IF(Στόχος=$D$2,ROW(Δραστηριότητα)-MIN(ROW(Δραστηριότητα))+1),ROWS($B$3:B100)))&CHAR(10),\"\")","v":""},null,{"$f":"IFERROR(INDEX(Δραστηριότητα,SMALL(IF(Στόχος=$F$2,ROW(Δραστηριότητα)-MIN(ROW(Δραστηριότητα))+1),ROWS($B$3:B100)))&CHAR(10),\"\")","v":""},null,{"$f":"IFERROR(INDEX(Δραστηριότητα,SMALL(IF(Στόχος=$H$2,ROW(Δραστηριότητα)-MIN(ROW(Δραστηριότητα))+1),ROWS($B$3:B100)))&CHAR(10),\"\")","v":""}]

{"sheet":"Πληροφορίες","index":2,"n_rows":6,"n_cols":1,"rows_kept":6}
["Πληροφορίες για αυτό το βιβλίο εργασίας"]
["Οδηγός για προγράμματα ανάγνωσης οθόνης"]
["Υπάρχουν 3 φύλλα εργασίας σε αυτό το βιβλίο εργασίας. \n\nΔεδομένα χάρτη\nΕυέλικτος χάρτης\nΠληροφορίες\n\nΟι οδηγίες για κάθε φύλλο εργασίας βρίσκονται στη στήλη A, ξεκινώντας από το κελί A1 κάθε φύλλου εργασίας. Είναι σε κρυφό κείμενο. Κάθε βήμα σάς καθοδηγεί στις πληροφορίες της συγκεκριμένης γραμμής. Κάθε επόμενο βήμα συνεχίζει στο κελί A2, A3 και ούτω καθεξής, εκτός και εάν υπάρχει διαφορετική ρητή οδηγία. Για παράδειγμα, το κείμενο οδηγιών μπορεί να αναφέρει \"συνεχίστε στο κελί A6\" για το επόμενο βήμα. \n\nΤο κρυφό κείμενο δεν εκτυπώνεται.\n\nΓια να καταργήσετε αυτές τις οδηγίες από οποιοδήποτε φύλλο εργασίας, απλώς διαγράψτε τη στήλη A.\n"]
["Πληροφορίες για αυτό το βιβλίο εργασίας"]
["Εισαγάγετε πληροφορίες οροσήμων στο φύλλο εργασίας \"Δεδομένα χάρτη\".  Φροντίστε να ταξινομήσετε κατά προτεραιότητα και, στη συνέχεια, κατά ορόσημο για να καταγράψετε τις προβολές Ολοκληρωμένος, Τρέχων, Βραχυπρόθεσμος και Μελλοντικός κατά φθίνουσα προτεραιότητα, με τα στοιχεία υψηλής προτεραιότητας να εμφανίζονται στην αρχή. \"Ο χάρτης στο φύλλο εργασίας \"Ευέλικτος χάρτης\" ενημερώνεται αυτόματα.\n"]
["Αυτή είναι η τελευταία οδηγία σε αυτό το φύλλο εργασίας."]